{"text_format":"1","workbook":"xlsx","n_sheets":2,"sheets":["Product Codes","Extended Expiration PLT PH"],"not_rendered":{"charts":0,"images":1,"macros":1,"external_links":0,"defined_names":4,"comments":0,"pivot_tables":0},"unopened":[],"bounds":{"document_bytes":16777216,"sheet_cells":100000,"rows_first":2000,"rows_last":500,"rows_between":2000,"halvings":0,"cell_chars":16384,"cell_head_chars":4096},"cells_cut":0,"cells_raw":0,"read":"whole","date_system":"1900"}

{"sheet":"Product Codes","index":0,"n_rows":342,"n_cols":7,"rows_kept":342,"cut":false,"hidden":false,"merged":[[0,4,0,6],[341,0,341,6],[2,0,2,6]]}
[null,null,null,null,"Product Codes"]
[]
[" The list below includes product codes of blood components currently provided by LifeSouth."]
[]
["Product Type","Modifiers","E Code","Product Description","Product Code1","Barcode","Barcode Value1"]
["Apheresis CONVALESCENT PLASMA","1st Container","E9747","Apheresis CONVALESCENT PLASMA|ACD-A/XX/<=-18C|COVID-19",{"$f":"Table1[[#This Row],[E Code]]&\"A00\"","v":"E9747A00"},{"$f":"CODE128(Table1[[#This Row],[Barcode Value1]])","v":"Ì=<EÇÅOÈA00UÎ"},{"$f":"\"=<\"&Table1[[#This Row],[E Code]]&\"A00\"","v":"=<E9747A00"}]
["Apheresis CONVALESCENT PLASMA","2nd Container","E9747","Apheresis CONVALESCENT PLASMA|ACD-A/XX/<=-18C|COVID-19",{"$f":"Table1[[#This Row],[E Code]]&\"B00\"","v":"E9747B00"},{"$f":"CODE128(Table1[[#This Row],[Barcode Value1]])","v":"Ì=<EÇÅOÈB00]Î"},{"$f":"\"=<\"&Table1[[#This Row],[E Code]]&\"B00\"","v":"=<E9747B00"}]
["Apheresis CONVALESCENT PLASMA","3rd Container","E9747","Apheresis CONVALESCENT PLASMA|ACD-A/XX/<=-18C|COVID-19",{"$f":"Table1[[#This Row],[E Code]]&\"C00\"","v":"E9747C00"},{"$f":"CODE128(Table1[[#This Row],[Barcode Value1]])","v":"Ì=<EÇÅOÈC00eÎ"},{"$f":"\"=<\"&Table1[[#This Row],[E Code]]&\"C00\"","v":"=<E9747C00"}]
["Apheresis CONVALESCENT PLASMA","4th Container","E9747","Apheresis CONVALESCENT PLASMA|ACD-A/XX/<=-18C|COVID-19",{"$f":"Table1[[#This Row],[E Code]]&\"D00\"","v":"E9747D00"},{"$f":"CODE128(Table1[[#This Row],[Barcode Value1]])","v":"Ì=<EÇÅOÈD00mÎ"},{"$f":"\"=<\"&Table1[[#This Row],[E Code]]&\"D00\"","v":"=<E9747D00"}]
["Apheresis CONVALESCENT PLASMA","N/A","E9747","Apheresis CONVALESCENT PLASMA|ACD-A/XX/<=-18C|COVID-19",{"$f":"Table1[[#This Row],[E Code]]&\"V00\"","v":"E9747V00"},{"$f":"CODE128(Table1[[#This Row],[Barcode Value1]])","v":"Ì=<EÇÅOÈV00/Î"},{"$f":"\"=<\"&Table1[[#This Row],[E Code]]&\"V00\"","v":"=<E9747V00"}]
["Apheresis FIBRINOGEN COMPLEX","Pathogen Reduced","EA484","Apheresis FIBRINOGEN COMPLEX|None/XX/<=-18C|Cryoprecipitated|Psoralen-treated",{"$f":"Table1[[#This Row],[E Code]]&\"V00\"","v":"EA484V00"},{"$f":"CODE128(Table1[[#This Row],[Barcode Value1]])","v":"Ì=<EA484V00'Î"},{"$f":"\"=<\"&Table1[[#This Row],[E Code]]&\"V00\"","v":"=<EA484V00"}]
["Apheresis FRESH FROZEN PLASMA","N/A","E0869","Apheresis FRESH FROZEN PLASMA|ACD-A/XX/<=-18C",{"$f":"Table1[[#This Row],[E Code]]&\"V00\"","v":"E0869V00"},{"$f":"CODE128(Table1[[#This Row],[Barcode Value1]])","v":"Ì=<EÇ(eÈV00+Î"},{"$f":"\"=<\"&Table1[[#This Row],[E Code]]&\"V00\"","v":"=<E0869V00"}]
["Apheresis FRESH FROZEN PLASMA","N/A","E4689","Apheresis FRESH FROZEN PLASMA|ACD-A/XX/<=-18C|1st container",{"$f":"Table1[[#This Row],[E Code]]&\"V00\"","v":"E4689V00"},{"$f":"CODE128(Table1[[#This Row],[Barcode Value1]])","v":"Ì=<EÇNyÈV00,Î"},{"$f":"\"=<\"&Table1[[#This Row],[E Code]]&\"V00\"","v":"=<E4689V00"}]
["Apheresis FRESH FROZEN PLASMA","N/A","E4693","Apheresis FRESH FROZEN PLASMA|ACD-A/XX/<=-18C|2nd container",{"$f":"Table1[[#This Row],[E Code]]&\"V00\"","v":"E4693V00"},{"$f":"CODE128(Table1[[#This Row],[Barcode Value1]])","v":"Ì=<EÇN}ÈV00DÎ"},{"$f":"\"=<\"&Table1[[#This Row],[E Code]]&\"V00\"","v":"=<E4693V00"}]
["Apheresis FRESH FROZEN PLASMA","N/A","E4697","Apheresis FRESH FROZEN PLASMA|ACD-A/XX/<=-18C|3rd container",{"$f":"Table1[[#This Row],[E Code]]&\"V00\"","v":"E4697V00"},{"$f":"CODE128(Table1[[#This Row],[Barcode Value1]])","v":"Ì=<EÇNÅÈV00\\Î"},{"$f":"\"=<\"&Table1[[#This Row],[E Code]]&\"V00\"","v":"=<E4697V00"}]
["Apheresis FRESH FROZEN PLASMA","N/A","E4701","Apheresis FRESH FROZEN PLASMA|ACD-A/XX/<=-18C|4th container",{"$f":"Table1[[#This Row],[E Code]]&\"V00\"","v":"E4701V00"},{"$f":"CODE128(Table1[[#This Row],[Barcode Value1]])","v":"Ì=<EÇO!ÈV00$Î"},{"$f":"\"=<\"&Table1[[#This Row],[E Code]]&\"V00\"","v":"=<E4701V00"}]
["Apheresis FRESH FROZEN PLASMA","Pathogen Reduced","E8734","Apheresis FRESH FROZEN PLASMA|ACD-A/XX/<=-18C|1st container|Psoralen-treated",{"$f":"Table1[[#This Row],[E Code]]&\"V00\"","v":"E8734V00"},{"$f":"CODE128(Table1[[#This Row],[Barcode Value1]])","v":"Ì=<EÇwBÈV00}Î"},{"$f":"\"=<\"&Table1[[#This Row],[E Code]]&\"V00\"","v":"=<E8734V00"}]
["Apheresis FRESH FROZEN PLASMA","Pathogen Reduced","E8735","Apheresis FRESH FROZEN PLASMA|ACD-A/XX/<=-18C|2nd container|Psoralen-treated",{"$f":"Table1[[#This Row],[E Code]]&\"V00\"","v":"E8735V00"},{"$f":"CODE128(Table1[[#This Row],[Barcode Value1]])","v":"Ì=<EÇwCÈV00ÇÎ"},{"$f":"\"=<\"&Table1[[#This Row],[E Code]]&\"V00\"","v":"=<E8735V00"}]
["Apheresis FRESH FROZEN PLASMA","Pathogen Reduced","E8736","Apheresis FRESH FROZEN PLASMA|ACD-A/XX/<=-18C|3rd container|Psoralen-treated",{"$f":"Table1[[#This Row],[E Code]]&\"V00\"","v":"E8736V00"},{"$f":"CODE128(Table1[[#This Row],[Barcode Value1]])","v":"Ì=<EÇwDÈV00\"Î"},{"$f":"\"=<\"&Table1[[#This Row],[E Code]]&\"V00\"","v":"=<E8736V00"}]
["Apheresis PLASMA","Cryo Reduced, Pathogen Reduced","EA504","Apheresis PLASMA|ACD-A/XX/<=-18C|Cryo reduced|Psoralen-treated",{"$f":"Table1[[#This Row],[E Code]]&\"V00\"","v":"EA504V00"},{"$f":"CODE128(Table1[[#This Row],[Barcode Value1]])","v":"Ì=<EA504V00cÎ"},{"$f":"\"=<\"&Table1[[#This Row],[E Code]]&\"V00\"","v":"=<EA504V00"}]
["Apheresis PLASMA","N/A","E1624","Apheresis PLASMA|ACD-A/XX/<=-18C|Frozen <=24h",{"$f":"Table1[[#This Row],[E Code]]&\"V00\"","v":"E1624V00"},{"$f":"CODE128(Table1[[#This Row],[Barcode Value1]])","v":"Ì=<EÇ08ÈV00zÎ"},{"$f":"\"=<\"&Table1[[#This Row],[E Code]]&\"V00\"","v":"=<E1624V00"}]
["Apheresis PLASMA","N/A","E7637","Apheresis PLASMA|ACD-A/XX/<=-18C|Frozen <=24h|1st container",{"$f":"Table1[[#This Row],[E Code]]&\"V00\"","v":"E7637V00"},{"$f":"CODE128(Table1[[#This Row],[Barcode Value1]])","v":"Ì=<EÇlEÈV00XÎ"},{"$f":"\"=<\"&Table1[[#This Row],[E Code]]&\"V00\"","v":"=<E7637V00"}]
["Apheresis PLASMA","N/A","E7639","Apheresis PLASMA|ACD-A/XX/<=-18C|Frozen <=24h|2nd container",{"$f":"Table1[[#This Row],[E Code]]&\"V00\"","v":"E7639V00"},{"$f":"CODE128(Table1[[#This Row],[Barcode Value1]])","v":"Ì=<EÇlGÈV00dÎ"},{"$f":"\"=<\"&Table1[[#This Row],[E Code]]&\"V00\"","v":"=<E7639V00"}]
["Apheresis PLASMA","N/A","E7641","Apheresis PLASMA|ACD-A/XX/<=-18C|Frozen <=24h|3rd container",{"$f":"Table1[[#This Row],[E Code]]&\"V00\"","v":"E7641V00"},{"$f":"CODE128(Table1[[#This Row],[Barcode Value1]])","v":"Ì=<EÇlIÈV00pÎ"},{"$f":"\"=<\"&Table1[[#This Row],[E Code]]&\"V00\"","v":"=<E7641V00"}]
["Apheresis PLASMA","N/A","E7643","Apheresis PLASMA|ACD-A/XX/<=-18C|Frozen <=24h|4th container",{"$f":"Table1[[#This Row],[E Code]]&\"V00\"","v":"E7643V00"},{"$f":"CODE128(Table1[[#This Row],[Barcode Value1]])","v":"Ì=<EÇlKÈV00|Î"},{"$f":"\"=<\"&Table1[[#This Row],[E Code]]&\"V00\"","v":"=<E7643V00"}]
["Apheresis PLATELETS","Leukoreduced","E5075","Apheresis PLATELETS|ACD-A/XX/20-24C|ResLeu:<5E6|<3E11 plts|Bacterial monitoring",{"$f":"Table1[[#This Row],[E Code]]&\"V00\"","v":"E5075V00"},{"$f":"CODE128(Table1[[#This Row],[Barcode Value1]])","v":"Ì=<EÇRkÈV00SÎ"},{"$f":"\"=<\"&Table1[[#This Row],[E Code]]&\"V00\"","v":"=<E5075V00"}]
["Apheresis PLATELETS","Leukoreduced","E9970","Apheresis PLATELETS|ACD-A/XX/20-24C|ResLeu:<5E6|<3E11 plts|Bacterial monitoring >=24h",{"$f":"Table1[[#This Row],[E Code]]&\"V00\"","v":"E9970V00"},{"$f":"CODE128(Table1[[#This Row],[Barcode Value1]])","v":"Ì=<EÇÇfÈV00\\Î"},{"$f":"\"=<\"&Table1[[#This Row],[E Code]]&\"V00\"","v":"=<E9970V00"}]
["Apheresis PLATELETS","Leukoreduced","EA011","Apheresis PLATELETS|ACD-A/XX/20-24C|ResLeu:<5E6|<3E11 plts|Bacterial monitoring >=36h",{"$f":"Table1[[#This Row],[E Code]]&\"V00\"","v":"EA011V00"},{"$f":"CODE128(Table1[[#This Row],[Barcode Value1]])","v":"Ì=<EA011V00;Î"},{"$f":"\"=<\"&Table1[[#This Row],[E Code]]&\"V00\"","v":"=<EA011V00"}]
["Apheresis PLATELETS","Leukoreduced","E5370","Apheresis PLATELETS|ACD-A/XX/20-24C|ResLeu:<5E6|1st container|<3E11 plts|Bacterial monitoring",{"$f":"Table1[[#This Row],[E Code]]&\"V00\"","v":"E5370V00"},{"$f":"CODE128(Table1[[#This Row],[Barcode Value1]])","v":"Ì=<EÇUfÈV00DÎ"},{"$f":"\"=<\"&Table1[[#This Row],[E Code]]&\"V00\"","v":"=<E5370V00"}]
["Apheresis PLATELETS","Leukoreduced","E9971","Apheresis PLATELETS|ACD-A/XX/20-24C|ResLeu:<5E6|1st container|<3E11 plts|Bacterial monitoring >=24h",{"$f":"Table1[[#This Row],[E Code]]&\"V00\"","v":"E9971V00"},{"$f":"CODE128(Table1[[#This Row],[Barcode Value1]])","v":"Ì=<EÇÇgÈV00bÎ"},{"$f":"\"=<\"&Table1[[#This Row],[E Code]]&\"V00\"","v":"=<E9971V00"}]
["Apheresis PLATELETS","Leukoreduced","EA012","Apheresis PLATELETS|ACD-A/XX/20-24C|ResLeu:<5E6|1st container|<3E11 plts|Bacterial monitoring >=36h",{"$f":"Table1[[#This Row],[E Code]]&\"V00\"","v":"EA012V00"},{"$f":"CODE128(Table1[[#This Row],[Barcode Value1]])","v":"Ì=<EA012V00BÎ"},{"$f":"\"=<\"&Table1[[#This Row],[E Code]]&\"V00\"","v":"=<EA012V00"}]
["Apheresis PLATELETS","Leukoreduced","E5031","Apheresis PLATELETS|ACD-A/XX/20-24C|ResLeu:<5E6|1st container|Bacterial monitoring",{"$f":"Table1[[#This Row],[E Code]]&\"V00\"","v":"E5031V00"},{"$f":"CODE128(Table1[[#This Row],[Barcode Value1]])","v":"Ì=<EÇR?ÈV00ÄÎ"},{"$f":"\"=<\"&Table1[[#This Row],[E Code]]&\"V00\"","v":"=<E5031V00"}]
["Apheresis PLATELETS","Leukoreduced","E9967","Apheresis PLATELETS|ACD-A/XX/20-24C|ResLeu:<5E6|1st container|Bacterial monitoring >=24h",{"$f":"Table1[[#This Row],[E Code]]&\"V00\"","v":"E9967V00"},{"$f":"CODE128(Table1[[#This Row],[Barcode Value1]])","v":"Ì=<EÇÇcÈV00JÎ"},{"$f":"\"=<\"&Table1[[#This Row],[E Code]]&\"V00\"","v":"=<E9967V00"}]
["Apheresis PLATELETS","Leukoreduced","EA008","Apheresis PLATELETS|ACD-A/XX/20-24C|ResLeu:<5E6|1st container|Bacterial monitoring >=36h",{"$f":"Table1[[#This Row],[E Code]]&\"V00\"","v":"EA008V00"},{"$f":"CODE128(Table1[[#This Row],[Barcode Value1]])","v":"Ì=<EA008V00fÎ"},{"$f":"\"=<\"&Table1[[#This Row],[E Code]]&\"V00\"","v":"=<EA008V00"}]
["Apheresis PLATELETS","Leukoreduced","E5371","Apheresis PLATELETS|ACD-A/XX/20-24C|ResLeu:<5E6|2nd container|<3E11 plts|Bacterial monitoring",{"$f":"Table1[[#This Row],[E Code]]&\"V00\"","v":"E5371V00"},{"$f":"CODE128(Table1[[#This Row],[Barcode Value1]])","v":"Ì=<EÇUgÈV00JÎ"},{"$f":"\"=<\"&Table1[[#This Row],[E Code]]&\"V00\"","v":"=<E5371V00"}]
["Apheresis PLATELETS","Leukoreduced","E9972","Apheresis PLATELETS|ACD-A/XX/20-24C|ResLeu:<5E6|2nd container|<3E11 plts|Bacterial monitoring >=24h",{"$f":"Table1[[#This Row],[E Code]]&\"V00\"","v":"E9972V00"},{"$f":"CODE128(Table1[[#This Row],[Barcode Value1]])","v":"Ì=<EÇÇhÈV00hÎ"},{"$f":"\"=<\"&Table1[[#This Row],[E Code]]&\"V00\"","v":"=<E9972V00"}]
["Apheresis PLATELETS","Leukoreduced","EA013","Apheresis PLATELETS|ACD-A/XX/20-24C|ResLeu:<5E6|2nd container|<3E11 plts|Bacterial monitoring >=36h",{"$f":"Table1[[#This Row],[E Code]]&\"V00\"","v":"EA013V00"},{"$f":"CODE128(Table1[[#This Row],[Barcode Value1]])","v":"Ì=<EA013V00IÎ"},{"$f":"\"=<\"&Table1[[#This Row],[E Code]]&\"V00\"","v":"=<EA013V00"}]
["Apheresis PLATELETS","Leukoreduced","E5032","Apheresis PLATELETS|ACD-A/XX/20-24C|ResLeu:<5E6|2nd container|Bacterial monitoring",{"$f":"Table1[[#This Row],[E Code]]&\"V00\"","v":"E5032V00"},{"$f":"CODE128(Table1[[#This Row],[Barcode Value1]])","v":"Ì=<EÇR@ÈV00ÊÎ"},{"$f":"\"=<\"&Table1[[#This Row],[E Code]]&\"V00\"","v":"=<E5032V00"}]
["Apheresis PLATELETS","Leukoreduced","E9968","Apheresis PLATELETS|ACD-A/XX/20-24C|ResLeu:<5E6|2nd container|Bacterial monitoring >=24h",{"$f":"Table1[[#This Row],[E Code]]&\"V00\"","v":"E9968V00"},{"$f":"CODE128(Table1[[#This Row],[Barcode Value1]])","v":"Ì=<EÇÇdÈV00PÎ"},{"$f":"\"=<\"&Table1[[#This Row],[E Code]]&\"V00\"","v":"=<E9968V00"}]
["Apheresis PLATELETS","Leukoreduced","EA009","Apheresis PLATELETS|ACD-A/XX/20-24C|ResLeu:<5E6|2nd container|Bacterial monitoring >=36h",{"$f":"Table1[[#This Row],[E Code]]&\"V00\"","v":"EA009V00"},{"$f":"CODE128(Table1[[#This Row],[Barcode Value1]])","v":"Ì=<EA009V00mÎ"},{"$f":"\"=<\"&Table1[[#This Row],[E Code]]&\"V00\"","v":"=<EA009V00"}]
["Apheresis PLATELETS","Leukoreduced","E5372","Apheresis PLATELETS|ACD-A/XX/20-24C|ResLeu:<5E6|3rd container|<3E11 plts|Bacterial monitoring",{"$f":"Table1[[#This Row],[E Code]]&\"V00\"","v":"E5372V00"},{"$f":"CODE128(Table1[[#This Row],[Barcode Value1]])","v":"Ì=<EÇUhÈV00PÎ"},{"$f":"\"=<\"&Table1[[#This Row],[E Code]]&\"V00\"","v":"=<E5372V00"}]
["Apheresis PLATELETS","Leukoreduced","E9973","Apheresis PLATELETS|ACD-A/XX/20-24C|ResLeu:<5E6|3rd container|<3E11 plts|Bacterial monitoring >=24h",{"$f":"Table1[[#This Row],[E Code]]&\"V00\"","v":"E9973V00"},{"$f":"CODE128(Table1[[#This Row],[Barcode Value1]])","v":"Ì=<EÇÇiÈV00nÎ"},{"$f":"\"=<\"&Table1[[#This Row],[E Code]]&\"V00\"","v":"=<E9973V00"}]
["Apheresis PLATELETS","Leukoreduced","EA014","Apheresis PLATELETS|ACD-A/XX/20-24C|ResLeu:<5E6|3rd container|<3E11 plts|Bacterial monitoring >=36h",{"$f":"Table1[[#This Row],[E Code]]&\"V00\"","v":"EA014V00"},{"$f":"CODE128(Table1[[#This Row],[Barcode Value1]])","v":"Ì=<EA014V00PÎ"},{"$f":"\"=<\"&Table1[[#This Row],[E Code]]&\"V00\"","v":"=<EA014V00"}]
["Apheresis PLATELETS","Leukoreduced","E5033","Apheresis PLATELETS|ACD-A/XX/20-24C|ResLeu:<5E6|3rd container|Bacterial monitoring",{"$f":"Table1[[#This Row],[E Code]]&\"V00\"","v":"E5033V00"},{"$f":"CODE128(Table1[[#This Row],[Barcode Value1]])","v":"Ì=<EÇRAÈV00%Î"},{"$f":"\"=<\"&Table1[[#This Row],[E Code]]&\"V00\"","v":"=<E5033V00"}]
["Apheresis PLATELETS","Leukoreduced","E9969","Apheresis PLATELETS|ACD-A/XX/20-24C|ResLeu:<5E6|3rd container|Bacterial monitoring >=24h",{"$f":"Table1[[#This Row],[E Code]]&\"V00\"","v":"E9969V00"},{"$f":"CODE128(Table1[[#This Row],[Barcode Value1]])","v":"Ì=<EÇÇeÈV00VÎ"},{"$f":"\"=<\"&Table1[[#This Row],[E Code]]&\"V00\"","v":"=<E9969V00"}]
["Apheresis PLATELETS","Leukoreduced","EA010","Apheresis PLATELETS|ACD-A/XX/20-24C|ResLeu:<5E6|3rd container|Bacterial monitoring >=36h",{"$f":"Table1[[#This Row],[E Code]]&\"V00\"","v":"EA010V00"},{"$f":"CODE128(Table1[[#This Row],[Barcode Value1]])","v":"Ì=<EA010V004Î"},{"$f":"\"=<\"&Table1[[#This Row],[E Code]]&\"V00\"","v":"=<EA010V00"}]
["Apheresis PLATELETS","Leukoreduced","E5030","Apheresis PLATELETS|ACD-A/XX/20-24C|ResLeu:<5E6|Bacterial monitoring",{"$f":"Table1[[#This Row],[E Code]]&\"V00\"","v":"E5030V00"},{"$f":"CODE128(Table1[[#This Row],[Barcode Value1]])","v":"Ì=<EÇR>ÈV00zÎ"},{"$f":"\"=<\"&Table1[[#This Row],[E Code]]&\"V00\"","v":"=<E5030V00"}]
["Apheresis PLATELETS","Leukoreduced","E9966","Apheresis PLATELETS|ACD-A/XX/20-24C|ResLeu:<5E6|Bacterial monitoring >=24h",{"$f":"Table1[[#This Row],[E Code]]&\"V00\"","v":"E9966V00"},{"$f":"CODE128(Table1[[#This Row],[Barcode Value1]])","v":"Ì=<EÇÇbÈV00DÎ"},{"$f":"\"=<\"&Table1[[#This Row],[E Code]]&\"V00\"","v":"=<E9966V00"}]
["Apheresis PLATELETS","Leukoreduced","EA007","Apheresis PLATELETS|ACD-A/XX/20-24C|ResLeu:<5E6|Bacterial monitoring >=36h",{"$f":"Table1[[#This Row],[E Code]]&\"V00\"","v":"EA007V00"},{"$f":"CODE128(Table1[[#This Row],[Barcode Value1]])","v":"Ì=<EA007V00_Î"},{"$f":"\"=<\"&Table1[[#This Row],[E Code]]&\"V00\"","v":"=<EA007V00"}]
["Apheresis PLATELETS","Leukoreduced","E9467","Apheresis PLATELETS|ACD-A/XX/refg|ResLeu:<5E6",{"$f":"Table1[[#This Row],[E Code]]&\"V00\"","v":"E9467V00"},{"$f":"CODE128(Table1[[#This Row],[Barcode Value1]])","v":"Ì=<EÇ~cÈV001Î"},{"$f":"\"=<\"&Table1[[#This Row],[E Code]]&\"V00\"","v":"=<E9467V00"}]
["Apheresis PLATELETS","Leukoreduced","E9471","Apheresis PLATELETS|ACD-A/XX/refg|ResLeu:<5E6|<3E11 plts",{"$f":"Table1[[#This Row],[E Code]]&\"V00\"","v":"E9471V00"},{"$f":"CODE128(Table1[[#This Row],[Barcode Value1]])","v":"Ì=<EÇ~gÈV00IÎ"},{"$f":"\"=<\"&Table1[[#This Row],[E Code]]&\"V00\"","v":"=<E9471V00"}]
["Apheresis PLATELETS","Leukoreduced","E9468","Apheresis PLATELETS|ACD-A/XX/refg|ResLeu:<5E6|1st container",{"$f":"Table1[[#This Row],[E Code]]&\"V00\"","v":"E9468V00"},{"$f":"CODE128(Table1[[#This Row],[Barcode Value1]])","v":"Ì=<EÇ~dÈV007Î"},{"$f":"\"=<\"&Table1[[#This Row],[E Code]]&\"V00\"","v":"=<E9468V00"}]
["Apheresis PLATELETS","Leukoreduced","EA774","Apheresis PLATELETS|ACD-A/XX/refg|ResLeu:<5E6|1st container|<3E11 plts",{"$f":"Table1[[#This Row],[E Code]]&\"V00\"","v":"EA774V00"},{"$f":"CODE128(Table1[[#This Row],[Barcode Value1]])","v":"Ì=<EA774V000Î"},{"$f":"\"=<\"&Table1[[#This Row],[E Code]]&\"V00\"","v":"=<EA774V00"}]
["Apheresis PLATELETS","Leukoreduced","E9469","Apheresis PLATELETS|ACD-A/XX/refg|ResLeu:<5E6|2nd container",{"$f":"Table1[[#This Row],[E Code]]&\"V00\"","v":"E9469V00"},{"$f":"CODE128(Table1[[#This Row],[Barcode Value1]])","v":"Ì=<EÇ~eÈV00=Î"},{"$f":"\"=<\"&Table1[[#This Row],[E Code]]&\"V00\"","v":"=<E9469V00"}]
["Apheresis PLATELETS","Leukoreduced","EA775","Apheresis PLATELETS|ACD-A/XX/refg|ResLeu:<5E6|2nd container|<3E11 plts",{"$f":"Table1[[#This Row],[E Code]]&\"V00\"","v":"EA775V00"},{"$f":"CODE128(Table1[[#This Row],[Barcode Value1]])","v":"Ì=<EA775V007Î"},{"$f":"\"=<\"&Table1[[#This Row],[E Code]]&\"V00\"","v":"=<EA775V00"}]
["Apheresis PLATELETS","Leukoreduced","E9470","Apheresis PLATELETS|ACD-A/XX/refg|ResLeu:<5E6|3rd container",{"$f":"Table1[[#This Row],[E Code]]&\"V00\"","v":"E9470V00"},{"$f":"CODE128(Table1[[#This Row],[Barcode Value1]])","v":"Ì=<EÇ~fÈV00CÎ"},{"$f":"\"=<\"&Table1[[#This Row],[E Code]]&\"V00\"","v":"=<E9470V00"}]
["Apheresis PLATELETS","Leukoreduced","EA776","Apheresis PLATELETS|ACD-A/XX/refg|ResLeu:<5E6|3rd container|<3E11 plts",{"$f":"Table1[[#This Row],[E Code]]&\"V00\"","v":"EA776V00"},{"$f":"CODE128(Table1[[#This Row],[Barcode Value1]])","v":"Ì=<EA776V00>Î"},{"$f":"\"=<\"&Table1[[#This Row],[E Code]]&\"V00\"","v":"=<EA776V00"}]
["Apheresis PLATELETS","Leukoreduced","EA052","Apheresis PLATELETS|ACD-A>PAS-F/XX/20-24C|ResLeu:<5E6|<3E11 plts|Bacterial monitoring",{"$f":"Table1[[#This Row],[E Code]]&\"V00\"","v":"EA052V00"},{"$f":"CODE128(Table1[[#This Row],[Barcode Value1]])","v":"Ì=<EA052V00ZÎ"},{"$f":"\"=<\"&Table1[[#This Row],[E Code]]&\"V00\"","v":"=<EA052V00"}]
["Apheresis PLATELETS","Leukoreduced","E9986","Apheresis PLATELETS|ACD-A>PAS-F/XX/20-24C|ResLeu:<5E6|<3E11 plts|Bacterial monitoring >=24h",{"$f":"Table1[[#This Row],[E Code]]&\"V00\"","v":"E9986V00"},{"$f":"CODE128(Table1[[#This Row],[Barcode Value1]])","v":"Ì=<EÇÇvÈV00UÎ"},{"$f":"\"=<\"&Table1[[#This Row],[E Code]]&\"V00\"","v":"=<E9986V00"}]
["Apheresis PLATELETS","Leukoreduced","EA027","Apheresis PLATELETS|ACD-A>PAS-F/XX/20-24C|ResLeu:<5E6|<3E11 plts|Bacterial monitoring >=36h",{"$f":"Table1[[#This Row],[E Code]]&\"V00\"","v":"EA027V00"},{"$f":"CODE128(Table1[[#This Row],[Barcode Value1]])","v":"Ì=<EA027V00kÎ"},{"$f":"\"=<\"&Table1[[#This Row],[E Code]]&\"V00\"","v":"=<EA027V00"}]
["Apheresis PLATELETS","Leukoreduced","EA053","Apheresis PLATELETS|ACD-A>PAS-F/XX/20-24C|ResLeu:<5E6|1st container|<3E11 plts|Bacterial monitoring",{"$f":"Table1[[#This Row],[E Code]]&\"V00\"","v":"EA053V00"},{"$f":"CODE128(Table1[[#This Row],[Barcode Value1]])","v":"Ì=<EA053V00aÎ"},{"$f":"\"=<\"&Table1[[#This Row],[E Code]]&\"V00\"","v":"=<EA053V00"}]
["Apheresis PLATELETS","Leukoreduced","E9987","Apheresis PLATELETS|ACD-A>PAS-F/XX/20-24C|ResLeu:<5E6|1st container|<3E11 plts|Bacterial monitoring >=24h",{"$f":"Table1[[#This Row],[E Code]]&\"V00\"","v":"E9987V00"},{"$f":"CODE128(Table1[[#This Row],[Barcode Value1]])","v":"Ì=<EÇÇwÈV00[Î"},{"$f":"\"=<\"&Table1[[#This Row],[E Code]]&\"V00\"","v":"=<E9987V00"}]
["Apheresis PLATELETS","Leukoreduced","EA028","Apheresis PLATELETS|ACD-A>PAS-F/XX/20-24C|ResLeu:<5E6|1st container|<3E11 plts|Bacterial monitoring >=36h",{"$f":"Table1[[#This Row],[E Code]]&\"V00\"","v":"EA028V00"},{"$f":"CODE128(Table1[[#This Row],[Barcode Value1]])","v":"Ì=<EA028V00rÎ"},{"$f":"\"=<\"&Table1[[#This Row],[E Code]]&\"V00\"","v":"=<EA028V00"}]
["Apheresis PLATELETS","Leukoreduced","EA049","Apheresis PLATELETS|ACD-A>PAS-F/XX/20-24C|ResLeu:<5E6|1st container|Bacterial monitoring",{"$f":"Table1[[#This Row],[E Code]]&\"V00\"","v":"EA049V00"},{"$f":"CODE128(Table1[[#This Row],[Barcode Value1]])","v":"Ì=<EA049V00ÉÎ"},{"$f":"\"=<\"&Table1[[#This Row],[E Code]]&\"V00\"","v":"=<EA049V00"}]
["Apheresis PLATELETS","Leukoreduced","E9983","Apheresis PLATELETS|ACD-A>PAS-F/XX/20-24C|ResLeu:<5E6|1st container|Bacterial monitoring >=24h",{"$f":"Table1[[#This Row],[E Code]]&\"V00\"","v":"E9983V00"},{"$f":"CODE128(Table1[[#This Row],[Barcode Value1]])","v":"Ì=<EÇÇsÈV00CÎ"},{"$f":"\"=<\"&Table1[[#This Row],[E Code]]&\"V00\"","v":"=<E9983V00"}]
["Apheresis PLATELETS","Leukoreduced","EA024","Apheresis PLATELETS|ACD-A>PAS-F/XX/20-24C|ResLeu:<5E6|1st container|Bacterial monitoring >=36h",{"$f":"Table1[[#This Row],[E Code]]&\"V00\"","v":"EA024V00"},{"$f":"CODE128(Table1[[#This Row],[Barcode Value1]])","v":"Ì=<EA024V00VÎ"},{"$f":"\"=<\"&Table1[[#This Row],[E Code]]&\"V00\"","v":"=<EA024V00"}]
["Apheresis PLATELETS","Leukoreduced","EA054","Apheresis PLATELETS|ACD-A>PAS-F/XX/20-24C|ResLeu:<5E6|2nd container|<3E11 plts|Bacterial monitoring",{"$f":"Table1[[#This Row],[E Code]]&\"V00\"","v":"EA054V00"},{"$f":"CODE128(Table1[[#This Row],[Barcode Value1]])","v":"Ì=<EA054V00hÎ"},{"$f":"\"=<\"&Table1[[#This Row],[E Code]]&\"V00\"","v":"=<EA054V00"}]
["Apheresis PLATELETS","Leukoreduced","E9988","Apheresis PLATELETS|ACD-A>PAS-F/XX/20-24C|ResLeu:<5E6|2nd container|<3E11 plts|Bacterial monitoring >=24h",{"$f":"Table1[[#This Row],[E Code]]&\"V00\"","v":"E9988V00"},{"$f":"CODE128(Table1[[#This Row],[Barcode Value1]])","v":"Ì=<EÇÇxÈV00aÎ"},{"$f":"\"=<\"&Table1[[#This Row],[E Code]]&\"V00\"","v":"=<E9988V00"}]
["Apheresis PLATELETS","Leukoreduced","EA029","Apheresis PLATELETS|ACD-A>PAS-F/XX/20-24C|ResLeu:<5E6|2nd container|<3E11 plts|Bacterial monitoring >=36h",{"$f":"Table1[[#This Row],[E Code]]&\"V00\"","v":"EA029V00"},{"$f":"CODE128(Table1[[#This Row],[Barcode Value1]])","v":"Ì=<EA029V00yÎ"},{"$f":"\"=<\"&Table1[[#This Row],[E Code]]&\"V00\"","v":"=<EA029V00"}]
["Apheresis PLATELETS","Leukoreduced","EA050","Apheresis PLATELETS|ACD-A>PAS-F/XX/20-24C|ResLeu:<5E6|2nd container|Bacterial monitoring",{"$f":"Table1[[#This Row],[E Code]]&\"V00\"","v":"EA050V00"},{"$f":"CODE128(Table1[[#This Row],[Barcode Value1]])","v":"Ì=<EA050V00LÎ"},{"$f":"\"=<\"&Table1[[#This Row],[E Code]]&\"V00\"","v":"=<EA050V00"}]
["Apheresis PLATELETS","Leukoreduced","E9984","Apheresis PLATELETS|ACD-A>PAS-F/XX/20-24C|ResLeu:<5E6|2nd container|Bacterial monitoring >=24h",{"$f":"Table1[[#This Row],[E Code]]&\"V00\"","v":"E9984V00"},{"$f":"CODE128(Table1[[#This Row],[Barcode Value1]])","v":"Ì=<EÇÇtÈV00IÎ"},{"$f":"\"=<\"&Table1[[#This Row],[E Code]]&\"V00\"","v":"=<E9984V00"}]
["Apheresis PLATELETS","Leukoreduced","EA025","Apheresis PLATELETS|ACD-A>PAS-F/XX/20-24C|ResLeu:<5E6|2nd container|Bacterial monitoring >=36h",{"$f":"Table1[[#This Row],[E Code]]&\"V00\"","v":"EA025V00"},{"$f":"CODE128(Table1[[#This Row],[Barcode Value1]])","v":"Ì=<EA025V00]Î"},{"$f":"\"=<\"&Table1[[#This Row],[E Code]]&\"V00\"","v":"=<EA025V00"}]
["Apheresis PLATELETS","Leukoreduced","EA055","Apheresis PLATELETS|ACD-A>PAS-F/XX/20-24C|ResLeu:<5E6|3rd container|<3E11 plts|Bacterial monitoring",{"$f":"Table1[[#This Row],[E Code]]&\"V00\"","v":"EA055V00"},{"$f":"CODE128(Table1[[#This Row],[Barcode Value1]])","v":"Ì=<EA055V00oÎ"},{"$f":"\"=<\"&Table1[[#This Row],[E Code]]&\"V00\"","v":"=<EA055V00"}]
["Apheresis PLATELETS","Leukoreduced","E9989","Apheresis PLATELETS|ACD-A>PAS-F/XX/20-24C|ResLeu:<5E6|3rd container|<3E11 plts|Bacterial monitoring >=24h",{"$f":"Table1[[#This Row],[E Code]]&\"V00\"","v":"E9989V00"},{"$f":"CODE128(Table1[[#This Row],[Barcode Value1]])","v":"Ì=<EÇÇyÈV00gÎ"},{"$f":"\"=<\"&Table1[[#This Row],[E Code]]&\"V00\"","v":"=<E9989V00"}]
["Apheresis PLATELETS","Leukoreduced","EA030","Apheresis PLATELETS|ACD-A>PAS-F/XX/20-24C|ResLeu:<5E6|3rd container|<3E11 plts|Bacterial monitoring >=36h",{"$f":"Table1[[#This Row],[E Code]]&\"V00\"","v":"EA030V00"},{"$f":"CODE128(Table1[[#This Row],[Barcode Value1]])","v":"Ì=<EA030V00@Î"},{"$f":"\"=<\"&Table1[[#This Row],[E Code]]&\"V00\"","v":"=<EA030V00"}]
["Apheresis PLATELETS","Leukoreduced","EA051","Apheresis PLATELETS|ACD-A>PAS-F/XX/20-24C|ResLeu:<5E6|3rd container|Bacterial monitoring",{"$f":"Table1[[#This Row],[E Code]]&\"V00\"","v":"EA051V00"},{"$f":"CODE128(Table1[[#This Row],[Barcode Value1]])","v":"Ì=<EA051V00SÎ"},{"$f":"\"=<\"&Table1[[#This Row],[E Code]]&\"V00\"","v":"=<EA051V00"}]
["Apheresis PLATELETS","Leukoreduced","E9985","Apheresis PLATELETS|ACD-A>PAS-F/XX/20-24C|ResLeu:<5E6|3rd container|Bacterial monitoring >=24h",{"$f":"Table1[[#This Row],[E Code]]&\"V00\"","v":"E9985V00"},{"$f":"CODE128(Table1[[#This Row],[Barcode Value1]])","v":"Ì=<EÇÇuÈV00OÎ"},{"$f":"\"=<\"&Table1[[#This Row],[E Code]]&\"V00\"","v":"=<E9985V00"}]
["Apheresis PLATELETS","Leukoreduced","EA026","Apheresis PLATELETS|ACD-A>PAS-F/XX/20-24C|ResLeu:<5E6|3rd container|Bacterial monitoring >=36h",{"$f":"Table1[[#This Row],[E Code]]&\"V00\"","v":"EA026V00"},{"$f":"CODE128(Table1[[#This Row],[Barcode Value1]])","v":"Ì=<EA026V00dÎ"},{"$f":"\"=<\"&Table1[[#This Row],[E Code]]&\"V00\"","v":"=<EA026V00"}]
["Apheresis PLATELETS","Leukoreduced","EA048","Apheresis PLATELETS|ACD-A>PAS-F/XX/20-24C|ResLeu:<5E6|Bacterial monitoring",{"$f":"Table1[[#This Row],[E Code]]&\"V00\"","v":"EA048V00"},{"$f":"CODE128(Table1[[#This Row],[Barcode Value1]])","v":"Ì=<EA048V00~Î"},{"$f":"\"=<\"&Table1[[#This Row],[E Code]]&\"V00\"","v":"=<EA048V00"}]
["Apheresis PLATELETS","Leukoreduced","E9982","Apheresis PLATELETS|ACD-A>PAS-F/XX/20-24C|ResLeu:<5E6|Bacterial monitoring >=24h",{"$f":"Table1[[#This Row],[E Code]]&\"V00\"","v":"E9982V00"},{"$f":"CODE128(Table1[[#This Row],[Barcode Value1]])","v":"Ì=<EÇÇrÈV00=Î"},{"$f":"\"=<\"&Table1[[#This Row],[E Code]]&\"V00\"","v":"=<E9982V00"}]
["Apheresis PLATELETS","Leukoreduced","EA023","Apheresis PLATELETS|ACD-A>PAS-F/XX/20-24C|ResLeu:<5E6|Bacterial monitoring >=36h",{"$f":"Table1[[#This Row],[E Code]]&\"V00\"","v":"EA023V00"},{"$f":"CODE128(Table1[[#This Row],[Barcode Value1]])","v":"Ì=<EA023V00OÎ"},{"$f":"\"=<\"&Table1[[#This Row],[E Code]]&\"V00\"","v":"=<EA023V00"}]
["Apheresis PLATELETS","Leukoreduced, Irradiated","E5073","Apheresis PLATELETS|ACD-A/XX/20-24C|Irradiated|ResLeu:<5E6|<3E11 plts|Bacterial monitoring",{"$f":"Table1[[#This Row],[E Code]]&\"V00\"","v":"E5073V00"},{"$f":"CODE128(Table1[[#This Row],[Barcode Value1]])","v":"Ì=<EÇRiÈV00GÎ"},{"$f":"\"=<\"&Table1[[#This Row],[E Code]]&\"V00\"","v":"=<E5073V00"}]
["Apheresis PLATELETS","Leukoreduced, Irradiated","E9978","Apheresis PLATELETS|ACD-A/XX/20-24C|Irradiated|ResLeu:<5E6|<3E11 plts|Bacterial monitoring >=24h",{"$f":"Table1[[#This Row],[E Code]]&\"V00\"","v":"E9978V00"},{"$f":"CODE128(Table1[[#This Row],[Barcode Value1]])","v":"Ì=<EÇÇnÈV00%Î"},{"$f":"\"=<\"&Table1[[#This Row],[E Code]]&\"V00\"","v":"=<E9978V00"}]
["Apheresis PLATELETS","Leukoreduced, Irradiated","EA019","Apheresis PLATELETS|ACD-A/XX/20-24C|Irradiated|ResLeu:<5E6|<3E11 plts|Bacterial monitoring >=36h",{"$f":"Table1[[#This Row],[E Code]]&\"V00\"","v":"EA019V00"},{"$f":"CODE128(Table1[[#This Row],[Barcode Value1]])","v":"Ì=<EA019V00sÎ"},{"$f":"\"=<\"&Table1[[#This Row],[E Code]]&\"V00\"","v":"=<EA019V00"}]
["Apheresis PLATELETS","Leukoreduced, Irradiated","E5532","Apheresis PLATELETS|ACD-A/XX/20-24C|Irradiated|ResLeu:<5E6|1st container|<3E11 plts|Bacterial monitoring",{"$f":"Table1[[#This Row],[E Code]]&\"V00\"","v":"E5532V00"},{"$f":"CODE128(Table1[[#This Row],[Barcode Value1]])","v":"Ì=<EÇW@ÈV008Î"},{"$f":"\"=<\"&Table1[[#This Row],[E Code]]&\"V00\"","v":"=<E5532V00"}]
["Apheresis PLATELETS","Leukoreduced, Irradiated","E9979","Apheresis PLATELETS|ACD-A/XX/20-24C|Irradiated|ResLeu:<5E6|1st container|<3E11 plts|Bacterial monitoring >=24h",{"$f":"Table1[[#This Row],[E Code]]&\"V00\"","v":"E9979V00"},{"$f":"CODE128(Table1[[#This Row],[Barcode Value1]])","v":"Ì=<EÇÇoÈV00+Î"},{"$f":"\"=<\"&Table1[[#This Row],[E Code]]&\"V00\"","v":"=<E9979V00"}]
["Apheresis PLATELETS","Leukoreduced, Irradiated","EA020","Apheresis PLATELETS|ACD-A/XX/20-24C|Irradiated|ResLeu:<5E6|1st container|<3E11 plts|Bacterial monitoring >=36h",{"$f":"Table1[[#This Row],[E Code]]&\"V00\"","v":"EA020V00"},{"$f":"CODE128(Table1[[#This Row],[Barcode Value1]])","v":"Ì=<EA020V00:Î"},{"$f":"\"=<\"&Table1[[#This Row],[E Code]]&\"V00\"","v":"=<EA020V00"}]
["Apheresis PLATELETS","Leukoreduced, Irradiated","E5035","Apheresis PLATELETS|ACD-A/XX/20-24C|Irradiated|ResLeu:<5E6|1st container|Bacterial monitoring",{"$f":"Table1[[#This Row],[E Code]]&\"V00\"","v":"E5035V00"},{"$f":"CODE128(Table1[[#This Row],[Barcode Value1]])","v":"Ì=<EÇRCÈV001Î"},{"$f":"\"=<\"&Table1[[#This Row],[E Code]]&\"V00\"","v":"=<E5035V00"}]
["Apheresis PLATELETS","Leukoreduced, Irradiated","E9975","Apheresis PLATELETS|ACD-A/XX/20-24C|Irradiated|ResLeu:<5E6|1st container|Bacterial monitoring >=24h",{"$f":"Table1[[#This Row],[E Code]]&\"V00\"","v":"E9975V00"},{"$f":"CODE128(Table1[[#This Row],[Barcode Value1]])","v":"Ì=<EÇÇkÈV00zÎ"},{"$f":"\"=<\"&Table1[[#This Row],[E Code]]&\"V00\"","v":"=<E9975V00"}]
["Apheresis PLATELETS","Leukoreduced, Irradiated","EA016","Apheresis PLATELETS|ACD-A/XX/20-24C|Irradiated|ResLeu:<5E6|1st container|Bacterial monitoring >=36h",{"$f":"Table1[[#This Row],[E Code]]&\"V00\"","v":"EA016V00"},{"$f":"CODE128(Table1[[#This Row],[Barcode Value1]])","v":"Ì=<EA016V00^Î"},{"$f":"\"=<\"&Table1[[#This Row],[E Code]]&\"V00\"","v":"=<EA016V00"}]
["Apheresis PLATELETS","Leukoreduced, Irradiated","E5533","Apheresis PLATELETS|ACD-A/XX/20-24C|Irradiated|ResLeu:<5E6|2nd container|<3E11 plts|Bacterial monitoring",{"$f":"Table1[[#This Row],[E Code]]&\"V00\"","v":"E5533V00"},{"$f":"CODE128(Table1[[#This Row],[Barcode Value1]])","v":"Ì=<EÇWAÈV00>Î"},{"$f":"\"=<\"&Table1[[#This Row],[E Code]]&\"V00\"","v":"=<E5533V00"}]
["Apheresis PLATELETS","Leukoreduced, Irradiated","E9980","Apheresis PLATELETS|ACD-A/XX/20-24C|Irradiated|ResLeu:<5E6|2nd container|<3E11 plts|Bacterial monitoring >=24h",{"$f":"Table1[[#This Row],[E Code]]&\"V00\"","v":"E9980V00"},{"$f":"CODE128(Table1[[#This Row],[Barcode Value1]])","v":"Ì=<EÇÇpÈV001Î"},{"$f":"\"=<\"&Table1[[#This Row],[E Code]]&\"V00\"","v":"=<E9980V00"}]
["Apheresis PLATELETS","Leukoreduced, Irradiated","EA021","Apheresis PLATELETS|ACD-A/XX/20-24C|Irradiated|ResLeu:<5E6|2nd container|<3E11 plts|Bacterial monitoring >=36h",{"$f":"Table1[[#This Row],[E Code]]&\"V00\"","v":"EA021V00"},{"$f":"CODE128(Table1[[#This Row],[Barcode Value1]])","v":"Ì=<EA021V00AÎ"},{"$f":"\"=<\"&Table1[[#This Row],[E Code]]&\"V00\"","v":"=<EA021V00"}]
["Apheresis PLATELETS","Leukoreduced, Irradiated","E5036","Apheresis PLATELETS|ACD-A/XX/20-24C|Irradiated|ResLeu:<5E6|2nd container|Bacterial monitoring",{"$f":"Table1[[#This Row],[E Code]]&\"V00\"","v":"E5036V00"},{"$f":"CODE128(Table1[[#This Row],[Barcode Value1]])","v":"Ì=<EÇRDÈV007Î"},{"$f":"\"=<\"&Table1[[#This Row],[E Code]]&\"V00\"","v":"=<E5036V00"}]
["Apheresis PLATELETS","Leukoreduced, Irradiated","E9976","Apheresis PLATELETS|ACD-A/XX/20-24C|Irradiated|ResLeu:<5E6|2nd container|Bacterial monitoring >=24h",{"$f":"Table1[[#This Row],[E Code]]&\"V00\"","v":"E9976V00"},{"$f":"CODE128(Table1[[#This Row],[Barcode Value1]])","v":"Ì=<EÇÇlÈV00ÄÎ"},{"$f":"\"=<\"&Table1[[#This Row],[E Code]]&\"V00\"","v":"=<E9976V00"}]
["Apheresis PLATELETS","Leukoreduced, Irradiated","EA017","Apheresis PLATELETS|ACD-A/XX/20-24C|Irradiated|ResLeu:<5E6|2nd container|Bacterial monitoring >=36h",{"$f":"Table1[[#This Row],[E Code]]&\"V00\"","v":"EA017V00"},{"$f":"CODE128(Table1[[#This Row],[Barcode Value1]])","v":"Ì=<EA017V00eÎ"},{"$f":"\"=<\"&Table1[[#This Row],[E Code]]&\"V00\"","v":"=<EA017V00"}]
["Apheresis PLATELETS","Leukoreduced, Irradiated","E5534","Apheresis PLATELETS|ACD-A/XX/20-24C|Irradiated|ResLeu:<5E6|3rd container|<3E11 plts|Bacterial monitoring",{"$f":"Table1[[#This Row],[E Code]]&\"V00\"","v":"E5534V00"},{"$f":"CODE128(Table1[[#This Row],[Barcode Value1]])","v":"Ì=<EÇWBÈV00DÎ"},{"$f":"\"=<\"&Table1[[#This Row],[E Code]]&\"V00\"","v":"=<E5534V00"}]
["Apheresis PLATELETS","Leukoreduced, Irradiated","E9981","Apheresis PLATELETS|ACD-A/XX/20-24C|Irradiated|ResLeu:<5E6|3rd container|<3E11 plts|Bacterial monitoring >=24h",{"$f":"Table1[[#This Row],[E Code]]&\"V00\"","v":"E9981V00"},{"$f":"CODE128(Table1[[#This Row],[Barcode Value1]])","v":"Ì=<EÇÇqÈV007Î"},{"$f":"\"=<\"&Table1[[#This Row],[E Code]]&\"V00\"","v":"=<E9981V00"}]
["Apheresis PLATELETS","Leukoreduced, Irradiated","EA022","Apheresis PLATELETS|ACD-A/XX/20-24C|Irradiated|ResLeu:<5E6|3rd container|<3E11 plts|Bacterial monitoring >=36h",{"$f":"Table1[[#This Row],[E Code]]&\"V00\"","v":"EA022V00"},{"$f":"CODE128(Table1[[#This Row],[Barcode Value1]])","v":"Ì=<EA022V00HÎ"},{"$f":"\"=<\"&Table1[[#This Row],[E Code]]&\"V00\"","v":"=<EA022V00"}]
["Apheresis PLATELETS","Leukoreduced, Irradiated","E5037","Apheresis PLATELETS|ACD-A/XX/20-24C|Irradiated|ResLeu:<5E6|3rd container|Bacterial monitoring",{"$f":"Table1[[#This Row],[E Code]]&\"V00\"","v":"E5037V00"},{"$f":"CODE128(Table1[[#This Row],[Barcode Value1]])","v":"Ì=<EÇREÈV00=Î"},{"$f":"\"=<\"&Table1[[#This Row],[E Code]]&\"V00\"","v":"=<E5037V00"}]
["Apheresis PLATELETS","Leukoreduced, Irradiated","E9977","Apheresis PLATELETS|ACD-A/XX/20-24C|Irradiated|ResLeu:<5E6|3rd container|Bacterial monitoring >=24h",{"$f":"Table1[[#This Row],[E Code]]&\"V00\"","v":"E9977V00"},{"$f":"CODE128(Table1[[#This Row],[Barcode Value1]])","v":"Ì=<EÇÇmÈV00ÊÎ"},{"$f":"\"=<\"&Table1[[#This Row],[E Code]]&\"V00\"","v":"=<E9977V00"}]
["Apheresis PLATELETS","Leukoreduced, Irradiated","EA018","Apheresis PLATELETS|ACD-A/XX/20-24C|Irradiated|ResLeu:<5E6|3rd container|Bacterial monitoring >=36h",{"$f":"Table1[[#This Row],[E Code]]&\"V00\"","v":"EA018V00"},{"$f":"CODE128(Table1[[#This Row],[Barcode Value1]])","v":"Ì=<EA018V00lÎ"},{"$f":"\"=<\"&Table1[[#This Row],[E Code]]&\"V00\"","v":"=<EA018V00"}]
["Apheresis PLATELETS","Leukoreduced, Irradiated","E5034","Apheresis PLATELETS|ACD-A/XX/20-24C|Irradiated|ResLeu:<5E6|Bacterial monitoring",{"$f":"Table1[[#This Row],[E Code]]&\"V00\"","v":"E5034V00"},{"$f":"CODE128(Table1[[#This Row],[Barcode Value1]])","v":"Ì=<EÇRBÈV00+Î"},{"$f":"\"=<\"&Table1[[#This Row],[E Code]]&\"V00\"","v":"=<E5034V00"}]
["Apheresis PLATELETS","Leukoreduced, Irradiated","E9974","Apheresis PLATELETS|ACD-A/XX/20-24C|Irradiated|ResLeu:<5E6|Bacterial monitoring >=24h",{"$f":"Table1[[#This Row],[E Code]]&\"V00\"","v":"E9974V00"},{"$f":"CODE128(Table1[[#This Row],[Barcode Value1]])","v":"Ì=<EÇÇjÈV00tÎ"},{"$f":"\"=<\"&Table1[[#This Row],[E Code]]&\"V00\"","v":"=<E9974V00"}]
["Apheresis PLATELETS","Leukoreduced, Irradiated","EA015","Apheresis PLATELETS|ACD-A/XX/20-24C|Irradiated|ResLeu:<5E6|Bacterial monitoring >=36h",{"$f":"Table1[[#This Row],[E Code]]&\"V00\"","v":"EA015V00"},{"$f":"CODE128(Table1[[#This Row],[Barcode Value1]])","v":"Ì=<EA015V00WÎ"},{"$f":"\"=<\"&Table1[[#This Row],[E Code]]&\"V00\"","v":"=<EA015V00"}]
["Apheresis PLATELETS","Leukoreduced, Irradiated","EA060","Apheresis PLATELETS|ACD-A>PAS-F/XX/20-24C|Irradiated|ResLeu:<5E6|<3E11 plts|Bacterial monitoring",{"$f":"Table1[[#This Row],[E Code]]&\"V00\"","v":"EA060V00"},{"$f":"CODE128(Table1[[#This Row],[Barcode Value1]])","v":"Ì=<EA060V00RÎ"},{"$f":"\"=<\"&Table1[[#This Row],[E Code]]&\"V00\"","v":"=<EA060V00"}]
["Apheresis PLATELETS","Leukoreduced, Irradiated","E9994","Apheresis PLATELETS|ACD-A>PAS-F/XX/20-24C|Irradiated|ResLeu:<5E6|<3E11 plts|Bacterial monitoring >=24h",{"$f":"Table1[[#This Row],[E Code]]&\"V00\"","v":"E9994V00"},{"$f":"CODE128(Table1[[#This Row],[Barcode Value1]])","v":"Ì=<EÇÇ~ÈV00ÉÎ"},{"$f":"\"=<\"&Table1[[#This Row],[E Code]]&\"V00\"","v":"=<E9994V00"}]
["Apheresis PLATELETS","Leukoreduced, Irradiated","EA035","Apheresis PLATELETS|ACD-A>PAS-F/XX/20-24C|Irradiated|ResLeu:<5E6|<3E11 plts|Bacterial monitoring >=36h",{"$f":"Table1[[#This Row],[E Code]]&\"V00\"","v":"EA035V00"},{"$f":"CODE128(Table1[[#This Row],[Barcode Value1]])","v":"Ì=<EA035V00cÎ"},{"$f":"\"=<\"&Table1[[#This Row],[E Code]]&\"V00\"","v":"=<EA035V00"}]
["Apheresis PLATELETS","Leukoreduced, Irradiated","EA061","Apheresis PLATELETS|ACD-A>PAS-F/XX/20-24C|Irradiated|ResLeu:<5E6|1st container|<3E11 plts|Bacterial monitoring",{"$f":"Table1[[#This Row],[E Code]]&\"V00\"","v":"EA061V00"},{"$f":"CODE128(Table1[[#This Row],[Barcode Value1]])","v":"Ì=<EA061V00YÎ"},{"$f":"\"=<\"&Table1[[#This Row],[E Code]]&\"V00\"","v":"=<EA061V00"}]
["Apheresis PLATELETS","Leukoreduced, Irradiated","E9995","Apheresis PLATELETS|ACD-A>PAS-F/XX/20-24C|Irradiated|ResLeu:<5E6|1st container|<3E11 plts|Bacterial monitoring >=24h",{"$f":"Table1[[#This Row],[E Code]]&\"V00\"","v":"E9995V00"},{"$f":"CODE128(Table1[[#This Row],[Barcode Value1]])","v":"Ì=<EÇÇÃÈV00$Î"},{"$f":"\"=<\"&Table1[[#This Row],[E Code]]&\"V00\"","v":"=<E9995V00"}]
["Apheresis PLATELETS","Leukoreduced, Irradiated","EA036","Apheresis PLATELETS|ACD-A>PAS-F/XX/20-24C|Irradiated|ResLeu:<5E6|1st container|<3E11 plts|Bacterial monitoring >=36h",{"$f":"Table1[[#This Row],[E Code]]&\"V00\"","v":"EA036V00"},{"$f":"CODE128(Table1[[#This Row],[Barcode Value1]])","v":"Ì=<EA036V00jÎ"},{"$f":"\"=<\"&Table1[[#This Row],[E Code]]&\"V00\"","v":"=<EA036V00"}]
["Apheresis PLATELETS","Leukoreduced, Irradiated","EA057","Apheresis PLATELETS|ACD-A>PAS-F/XX/20-24C|Irradiated|ResLeu:<5E6|1st container|Bacterial monitoring",{"$f":"Table1[[#This Row],[E Code]]&\"V00\"","v":"EA057V00"},{"$f":"CODE128(Table1[[#This Row],[Barcode Value1]])","v":"Ì=<EA057V00}Î"},{"$f":"\"=<\"&Table1[[#This Row],[E Code]]&\"V00\"","v":"=<EA057V00"}]
["Apheresis PLATELETS","Leukoreduced, Irradiated","E9991","Apheresis PLATELETS|ACD-A>PAS-F/XX/20-24C|Irradiated|ResLeu:<5E6|1st container|Bacterial monitoring >=24h",{"$f":"Table1[[#This Row],[E Code]]&\"V00\"","v":"E9991V00"},{"$f":"CODE128(Table1[[#This Row],[Barcode Value1]])","v":"Ì=<EÇÇ{ÈV00sÎ"},{"$f":"\"=<\"&Table1[[#This Row],[E Code]]&\"V00\"","v":"=<E9991V00"}]
["Apheresis PLATELETS","Leukoreduced, Irradiated","EA032","Apheresis PLATELETS|ACD-A>PAS-F/XX/20-24C|Irradiated|ResLeu:<5E6|1st container|Bacterial monitoring >=36h",{"$f":"Table1[[#This Row],[E Code]]&\"V00\"","v":"EA032V00"},{"$f":"CODE128(Table1[[#This Row],[Barcode Value1]])","v":"Ì=<EA032V00NÎ"},{"$f":"\"=<\"&Table1[[#This Row],[E Code]]&\"V00\"","v":"=<EA032V00"}]
["Apheresis PLATELETS","Leukoreduced, Irradiated","EA062","Apheresis PLATELETS|ACD-A>PAS-F/XX/20-24C|Irradiated|ResLeu:<5E6|2nd container|<3E11 plts|Bacterial monitoring",{"$f":"Table1[[#This Row],[E Code]]&\"V00\"","v":"EA062V00"},{"$f":"CODE128(Table1[[#This Row],[Barcode Value1]])","v":"Ì=<EA062V00`Î"},{"$f":"\"=<\"&Table1[[#This Row],[E Code]]&\"V00\"","v":"=<EA062V00"}]
["Apheresis PLATELETS","Leukoreduced, Irradiated","E9996","Apheresis PLATELETS|ACD-A>PAS-F/XX/20-24C|Irradiated|ResLeu:<5E6|2nd container|<3E11 plts|Bacterial monitoring >=24h",{"$f":"Table1[[#This Row],[E Code]]&\"V00\"","v":"E9996V00"},{"$f":"CODE128(Table1[[#This Row],[Barcode Value1]])","v":"Ì=<EÇÇÄÈV00*Î"},{"$f":"\"=<\"&Table1[[#This Row],[E Code]]&\"V00\"","v":"=<E9996V00"}]
["Apheresis PLATELETS","Leukoreduced, Irradiated","EA037","Apheresis PLATELETS|ACD-A>PAS-F/XX/20-24C|Irradiated|ResLeu:<5E6|2nd container|<3E11 plts|Bacterial monitoring >=36h",{"$f":"Table1[[#This Row],[E Code]]&\"V00\"","v":"EA037V00"},{"$f":"CODE128(Table1[[#This Row],[Barcode Value1]])","v":"Ì=<EA037V00qÎ"},{"$f":"\"=<\"&Table1[[#This Row],[E Code]]&\"V00\"","v":"=<EA037V00"}]
["Apheresis PLATELETS","Leukoreduced, Irradiated","EA058","Apheresis PLATELETS|ACD-A>PAS-F/XX/20-24C|Irradiated|ResLeu:<5E6|2nd container|Bacterial monitoring",{"$f":"Table1[[#This Row],[E Code]]&\"V00\"","v":"EA058V00"},{"$f":"CODE128(Table1[[#This Row],[Barcode Value1]])","v":"Ì=<EA058V00ÈÎ"},{"$f":"\"=<\"&Table1[[#This Row],[E Code]]&\"V00\"","v":"=<EA058V00"}]
["Apheresis PLATELETS","Leukoreduced, Irradiated","E9992","Apheresis PLATELETS|ACD-A>PAS-F/XX/20-24C|Irradiated|ResLeu:<5E6|2nd container|Bacterial monitoring >=24h",{"$f":"Table1[[#This Row],[E Code]]&\"V00\"","v":"E9992V00"},{"$f":"CODE128(Table1[[#This Row],[Barcode Value1]])","v":"Ì=<EÇÇ|ÈV00yÎ"},{"$f":"\"=<\"&Table1[[#This Row],[E Code]]&\"V00\"","v":"=<E9992V00"}]
["Apheresis PLATELETS","Leukoreduced, Irradiated","EA033","Apheresis PLATELETS|ACD-A>PAS-F/XX/20-24C|Irradiated|ResLeu:<5E6|2nd container|Bacterial monitoring >=36h",{"$f":"Table1[[#This Row],[E Code]]&\"V00\"","v":"EA033V00"},{"$f":"CODE128(Table1[[#This Row],[Barcode Value1]])","v":"Ì=<EA033V00UÎ"},{"$f":"\"=<\"&Table1[[#This Row],[E Code]]&\"V00\"","v":"=<EA033V00"}]
["Apheresis PLATELETS","Leukoreduced, Irradiated","EA063","Apheresis PLATELETS|ACD-A>PAS-F/XX/20-24C|Irradiated|ResLeu:<5E6|3rd container|<3E11 plts|Bacterial monitoring",{"$f":"Table1[[#This Row],[E Code]]&\"V00\"","v":"EA063V00"},{"$f":"CODE128(Table1[[#This Row],[Barcode Value1]])","v":"Ì=<EA063V00gÎ"},{"$f":"\"=<\"&Table1[[#This Row],[E Code]]&\"V00\"","v":"=<EA063V00"}]
["Apheresis PLATELETS","Leukoreduced, Irradiated","E9997","Apheresis PLATELETS|ACD-A>PAS-F/XX/20-24C|Irradiated|ResLeu:<5E6|3rd container|<3E11 plts|Bacterial monitoring >=24h",{"$f":"Table1[[#This Row],[E Code]]&\"V00\"","v":"E9997V00"},{"$f":"CODE128(Table1[[#This Row],[Barcode Value1]])","v":"Ì=<EÇÇÅÈV000Î"},{"$f":"\"=<\"&Table1[[#This Row],[E Code]]&\"V00\"","v":"=<E9997V00"}]
["Apheresis PLATELETS","Leukoreduced, Irradiated","EA038","Apheresis PLATELETS|ACD-A>PAS-F/XX/20-24C|Irradiated|ResLeu:<5E6|3rd container|<3E11 plts|Bacterial monitoring >=36h",{"$f":"Table1[[#This Row],[E Code]]&\"V00\"","v":"EA038V00"},{"$f":"CODE128(Table1[[#This Row],[Barcode Value1]])","v":"Ì=<EA038V00xÎ"},{"$f":"\"=<\"&Table1[[#This Row],[E Code]]&\"V00\"","v":"=<EA038V00"}]
["Apheresis PLATELETS","Leukoreduced, Irradiated","EA059","Apheresis PLATELETS|ACD-A>PAS-F/XX/20-24C|Irradiated|ResLeu:<5E6|3rd container|Bacterial monitoring",{"$f":"Table1[[#This Row],[E Code]]&\"V00\"","v":"EA059V00"},{"$f":"CODE128(Table1[[#This Row],[Barcode Value1]])","v":"Ì=<EA059V00$Î"},{"$f":"\"=<\"&Table1[[#This Row],[E Code]]&\"V00\"","v":"=<EA059V00"}]
["Apheresis PLATELETS","Leukoreduced, Irradiated","E9993","Apheresis PLATELETS|ACD-A>PAS-F/XX/20-24C|Irradiated|ResLeu:<5E6|3rd container|Bacterial monitoring >=24h",{"$f":"Table1[[#This Row],[E Code]]&\"V00\"","v":"E9993V00"},{"$f":"CODE128(Table1[[#This Row],[Barcode Value1]])","v":"Ì=<EÇÇ}ÈV00ÃÎ"},{"$f":"\"=<\"&Table1[[#This Row],[E Code]]&\"V00\"","v":"=<E9993V00"}]
["Apheresis PLATELETS","Leukoreduced, Irradiated","EA034","Apheresis PLATELETS|ACD-A>PAS-F/XX/20-24C|Irradiated|ResLeu:<5E6|3rd container|Bacterial monitoring >=36h",{"$f":"Table1[[#This Row],[E Code]]&\"V00\"","v":"EA034V00"},{"$f":"CODE128(Table1[[#This Row],[Barcode Value1]])","v":"Ì=<EA034V00\\Î"},{"$f":"\"=<\"&Table1[[#This Row],[E Code]]&\"V00\"","v":"=<EA034V00"}]
["Apheresis PLATELETS","Leukoreduced, Irradiated","EA056","Apheresis PLATELETS|ACD-A>PAS-F/XX/20-24C|Irradiated|ResLeu:<5E6|Bacterial monitoring",{"$f":"Table1[[#This Row],[E Code]]&\"V00\"","v":"EA056V00"},{"$f":"CODE128(Table1[[#This Row],[Barcode Value1]])","v":"Ì=<EA056V00vÎ"},{"$f":"\"=<\"&Table1[[#This Row],[E Code]]&\"V00\"","v":"=<EA056V00"}]
["Apheresis PLATELETS","Leukoreduced, Irradiated","E9990","Apheresis PLATELETS|ACD-A>PAS-F/XX/20-24C|Irradiated|ResLeu:<5E6|Bacterial monitoring >=24h",{"$f":"Table1[[#This Row],[E Code]]&\"V00\"","v":"E9990V00"},{"$f":"CODE128(Table1[[#This Row],[Barcode Value1]])","v":"Ì=<EÇÇzÈV00mÎ"},{"$f":"\"=<\"&Table1[[#This Row],[E Code]]&\"V00\"","v":"=<E9990V00"}]
["Apheresis PLATELETS","Leukoreduced, Irradiated","EA031","Apheresis PLATELETS|ACD-A>PAS-F/XX/20-24C|Irradiated|ResLeu:<5E6|Bacterial monitoring >=36h",{"$f":"Table1[[#This Row],[E Code]]&\"V00\"","v":"EA031V00"},{"$f":"CODE128(Table1[[#This Row],[Barcode Value1]])","v":"Ì=<EA031V00GÎ"},{"$f":"\"=<\"&Table1[[#This Row],[E Code]]&\"V00\"","v":"=<EA031V00"}]
["Apheresis PLATELETS","Leukoreduced, Pathogen Reduced","E8335","Apheresis PLATELETS|ACD-A/XX/20-24C|ResLeu:<5E6|<3E11 plts|Psoralen-treated",{"$f":"Table1[[#This Row],[E Code]]&\"V00\"","v":"E8335V00"},{"$f":"CODE128(Table1[[#This Row],[Barcode Value1]])","v":"Ì=<EÇsCÈV00oÎ"},{"$f":"\"=<\"&Table1[[#This Row],[E Code]]&\"V00\"","v":"=<E8335V00"}]
["Apheresis PLATELETS","Leukoreduced, Pathogen Reduced","E8971","Apheresis PLATELETS|ACD-A/XX/20-24C|ResLeu:<5E6|1st container|<3E11 plts|Psoralen-treated",{"$f":"Table1[[#This Row],[E Code]]&\"V00\"","v":"E8971V00"},{"$f":"CODE128(Table1[[#This Row],[Barcode Value1]])","v":"Ì=<EÇygÈV000Î"},{"$f":"\"=<\"&Table1[[#This Row],[E Code]]&\"V00\"","v":"=<E8971V00"}]
["Apheresis PLATELETS","Leukoreduced, Pathogen Reduced","E8332","Apheresis PLATELETS|ACD-A/XX/20-24C|ResLeu:<5E6|1st container|Psoralen-treated",{"$f":"Table1[[#This Row],[E Code]]&\"V00\"","v":"E8332V00"},{"$f":"CODE128(Table1[[#This Row],[Barcode Value1]])","v":"Ì=<EÇs@ÈV00]Î"},{"$f":"\"=<\"&Table1[[#This Row],[E Code]]&\"V00\"","v":"=<E8332V00"}]
["Apheresis PLATELETS","Leukoreduced, Pathogen Reduced","E8972","Apheresis PLATELETS|ACD-A/XX/20-24C|ResLeu:<5E6|2nd container|<3E11 plts|Psoralen-treated",{"$f":"Table1[[#This Row],[E Code]]&\"V00\"","v":"E8972V00"},{"$f":"CODE128(Table1[[#This Row],[Barcode Value1]])","v":"Ì=<EÇyhÈV006Î"},{"$f":"\"=<\"&Table1[[#This Row],[E Code]]&\"V00\"","v":"=<E8972V00"}]
["Apheresis PLATELETS","Leukoreduced, Pathogen Reduced","E8333","Apheresis PLATELETS|ACD-A/XX/20-24C|ResLeu:<5E6|2nd container|Psoralen-treated",{"$f":"Table1[[#This Row],[E Code]]&\"V00\"","v":"E8333V00"},{"$f":"CODE128(Table1[[#This Row],[Barcode Value1]])","v":"Ì=<EÇsAÈV00cÎ"},{"$f":"\"=<\"&Table1[[#This Row],[E Code]]&\"V00\"","v":"=<E8333V00"}]
["Apheresis PLATELETS","Leukoreduced, Pathogen Reduced","E8973","Apheresis PLATELETS|ACD-A/XX/20-24C|ResLeu:<5E6|3rd container|<3E11 plts|Psoralen-treated",{"$f":"Table1[[#This Row],[E Code]]&\"V00\"","v":"E8973V00"},{"$f":"CODE128(Table1[[#This Row],[Barcode Value1]])","v":"Ì=<EÇyiÈV00<Î"},{"$f":"\"=<\"&Table1[[#This Row],[E Code]]&\"V00\"","v":"=<E8973V00"}]
["Apheresis PLATELETS","Leukoreduced, Pathogen Reduced","E8334","Apheresis PLATELETS|ACD-A/XX/20-24C|ResLeu:<5E6|3rd container|Psoralen-treated",{"$f":"Table1[[#This Row],[E Code]]&\"V00\"","v":"E8334V00"},{"$f":"CODE128(Table1[[#This Row],[Barcode Value1]])","v":"Ì=<EÇsBÈV00iÎ"},{"$f":"\"=<\"&Table1[[#This Row],[E Code]]&\"V00\"","v":"=<E8334V00"}]
["Apheresis PLATELETS","Leukoreduced, Pathogen Reduced","E8331","Apheresis PLATELETS|ACD-A/XX/20-24C|ResLeu:<5E6|Psoralen-treated",{"$f":"Table1[[#This Row],[E Code]]&\"V00\"","v":"E8331V00"},{"$f":"CODE128(Table1[[#This Row],[Barcode Value1]])","v":"Ì=<EÇs?ÈV00WÎ"},{"$f":"\"=<\"&Table1[[#This Row],[E Code]]&\"V00\"","v":"=<E8331V00"}]
["Apheresis PLATELETS","Leukoreduced, Pathogen Reduced","E9637","Apheresis PLATELETS|ACD-A/XX/refg|ResLeu:<5E6|<3E11 plts|Psoralen-treated",{"$f":"Table1[[#This Row],[E Code]]&\"V00\"","v":"E9637V00"},{"$f":"CODE128(Table1[[#This Row],[Barcode Value1]])","v":"Ì=<EÇÄEÈV00UÎ"},{"$f":"\"=<\"&Table1[[#This Row],[E Code]]&\"V00\"","v":"=<E9637V00"}]
["Apheresis PLATELETS","Leukoreduced, Pathogen Reduced","EA780","Apheresis PLATELETS|ACD-A/XX/refg|ResLeu:<5E6|1st container|<3E11 plts|Psoralen-treated",{"$f":"Table1[[#This Row],[E Code]]&\"V00\"","v":"EA780V00"},{"$f":"CODE128(Table1[[#This Row],[Barcode Value1]])","v":"Ì=<EA780V00ÅÎ"},{"$f":"\"=<\"&Table1[[#This Row],[E Code]]&\"V00\"","v":"=<EA780V00"}]
["Apheresis PLATELETS","Leukoreduced, Pathogen Reduced","E9634","Apheresis PLATELETS|ACD-A/XX/refg|ResLeu:<5E6|1st container|Psoralen-treated",{"$f":"Table1[[#This Row],[E Code]]&\"V00\"","v":"E9634V00"},{"$f":"CODE128(Table1[[#This Row],[Barcode Value1]])","v":"Ì=<EÇÄBÈV00CÎ"},{"$f":"\"=<\"&Table1[[#This Row],[E Code]]&\"V00\"","v":"=<E9634V00"}]
["Apheresis PLATELETS","Leukoreduced, Pathogen Reduced","EA781","Apheresis PLATELETS|ACD-A/XX/refg|ResLeu:<5E6|2nd container|<3E11 plts|Psoralen-treated",{"$f":"Table1[[#This Row],[E Code]]&\"V00\"","v":"EA781V00"},{"$f":"CODE128(Table1[[#This Row],[Barcode Value1]])","v":"Ì=<EA781V00!Î"},{"$f":"\"=<\"&Table1[[#This Row],[E Code]]&\"V00\"","v":"=<EA781V00"}]
["Apheresis PLATELETS","Leukoreduced, Pathogen Reduced","E9635","Apheresis PLATELETS|ACD-A/XX/refg|ResLeu:<5E6|2nd container|Psoralen-treated",{"$f":"Table1[[#This Row],[E Code]]&\"V00\"","v":"E9635V00"},{"$f":"CODE128(Table1[[#This Row],[Barcode Value1]])","v":"Ì=<EÇÄCÈV00IÎ"},{"$f":"\"=<\"&Table1[[#This Row],[E Code]]&\"V00\"","v":"=<E9635V00"}]
["Apheresis PLATELETS","Leukoreduced, Pathogen Reduced","EA782","Apheresis PLATELETS|ACD-A/XX/refg|ResLeu:<5E6|3rd container|<3E11 plts|Psoralen-treated",{"$f":"Table1[[#This Row],[E Code]]&\"V00\"","v":"EA782V00"},{"$f":"CODE128(Table1[[#This Row],[Barcode Value1]])","v":"Ì=<EA782V00(Î"},{"$f":"\"=<\"&Table1[[#This Row],[E Code]]&\"V00\"","v":"=<EA782V00"}]
["Apheresis PLATELETS","Leukoreduced, Pathogen Reduced","E9636","Apheresis PLATELETS|ACD-A/XX/refg|ResLeu:<5E6|3rd container|Psoralen-treated",{"$f":"Table1[[#This Row],[E Code]]&\"V00\"","v":"E9636V00"},{"$f":"CODE128(Table1[[#This Row],[Barcode Value1]])","v":"Ì=<EÇÄDÈV00OÎ"},{"$f":"\"=<\"&Table1[[#This Row],[E Code]]&\"V00\"","v":"=<E9636V00"}]
["Apheresis PLATELETS","Leukoreduced, Pathogen Reduced","E9633","Apheresis PLATELETS|ACD-A/XX/refg|ResLeu:<5E6|Psoralen-treated",{"$f":"Table1[[#This Row],[E Code]]&\"V00\"","v":"E9633V00"},{"$f":"CODE128(Table1[[#This Row],[Barcode Value1]])","v":"Ì=<EÇÄAÈV00=Î"},{"$f":"\"=<\"&Table1[[#This Row],[E Code]]&\"V00\"","v":"=<E9633V00"}]
["Apheresis POOLED FIBRINOGEN COMPLEX","Pathogen Reduced","EA485","Apheresis POOLED FIBRINOGEN COMPLEX|None/XX/<=-18C|Cryoprecipitated|Psoralen-treated|From 2 donors",{"$f":"Table1[[#This Row],[E Code]]&\"V00\"","v":"EA485V00"},{"$f":"CODE128(Table1[[#This Row],[Barcode Value1]])","v":"Ì=<EA485V00.Î"},{"$f":"\"=<\"&Table1[[#This Row],[E Code]]&\"V00\"","v":"=<EA485V00"}]
["Apheresis POOLED FIBRINOGEN COMPLEX","Pathogen Reduced","EA486","Apheresis POOLED FIBRINOGEN COMPLEX|None/XX/<=-18C|Cryoprecipitated|Psoralen-treated|From 3 donors",{"$f":"Table1[[#This Row],[E Code]]&\"V00\"","v":"EA486V00"},{"$f":"CODE128(Table1[[#This Row],[Barcode Value1]])","v":"Ì=<EA486V005Î"},{"$f":"\"=<\"&Table1[[#This Row],[E Code]]&\"V00\"","v":"=<EA486V00"}]
["Apheresis POOLED FIBRINOGEN COMPLEX","Pathogen Reduced","EA487","Apheresis POOLED FIBRINOGEN COMPLEX|None/XX/<=-18C|Cryoprecipitated|Psoralen-treated|From 4 donors",{"$f":"Table1[[#This Row],[E Code]]&\"V00\"","v":"EA487V00"},{"$f":"CODE128(Table1[[#This Row],[Barcode Value1]])","v":"Ì=<EA487V00<Î"},{"$f":"\"=<\"&Table1[[#This Row],[E Code]]&\"V00\"","v":"=<EA487V00"}]
["Apheresis POOLED FIBRINOGEN COMPLEX","Pathogen Reduced","EA488","Apheresis POOLED FIBRINOGEN COMPLEX|None/XX/<=-18C|Cryoprecipitated|Psoralen-treated|From 5 donors",{"$f":"Table1[[#This Row],[E Code]]&\"V00\"","v":"EA488V00"},{"$f":"CODE128(Table1[[#This Row],[Barcode Value1]])","v":"Ì=<EA488V00CÎ"},{"$f":"\"=<\"&Table1[[#This Row],[E Code]]&\"V00\"","v":"=<EA488V00"}]
["Apheresis RED BLOOD CELLS","Irradiated","E4525","Apheresis RED BLOOD CELLS|ACD-A>AS1/XX/refg|Irradiated",{"$f":"Table1[[#This Row],[E Code]]&\"V00\"","v":"E4525V00"},{"$f":"CODE128(Table1[[#This Row],[Barcode Value1]])","v":"Ì=<EÇM9ÈV00CÎ"},{"$f":"\"=<\"&Table1[[#This Row],[E Code]]&\"V00\"","v":"=<E4525V00"}]
["Apheresis RED BLOOD CELLS","Irradiated","E4529","Apheresis RED BLOOD CELLS|ACD-A>AS1/XX/refg|Irradiated|1st container",{"$f":"Table1[[#This Row],[E Code]]&\"V00\"","v":"E4529V00"},{"$f":"CODE128(Table1[[#This Row],[Barcode Value1]])","v":"Ì=<EÇM=ÈV00[Î"},{"$f":"\"=<\"&Table1[[#This Row],[E Code]]&\"V00\"","v":"=<E4529V00"}]
["Apheresis RED BLOOD CELLS","Irradiated","E4530","Apheresis RED BLOOD CELLS|ACD-A>AS1/XX/refg|Irradiated|2nd container",{"$f":"Table1[[#This Row],[E Code]]&\"V00\"","v":"E4530V00"},{"$f":"CODE128(Table1[[#This Row],[Barcode Value1]])","v":"Ì=<EÇM>ÈV00aÎ"},{"$f":"\"=<\"&Table1[[#This Row],[E Code]]&\"V00\"","v":"=<E4530V00"}]
["Apheresis RED BLOOD CELLS","Irradiated","E4537","Apheresis RED BLOOD CELLS|ACD-A>AS3/XX/refg|Irradiated",{"$f":"Table1[[#This Row],[E Code]]&\"V00\"","v":"E4537V00"},{"$f":"CODE128(Table1[[#This Row],[Barcode Value1]])","v":"Ì=<EÇMEÈV00$Î"},{"$f":"\"=<\"&Table1[[#This Row],[E Code]]&\"V00\"","v":"=<E4537V00"}]
["Apheresis RED BLOOD CELLS","Irradiated","E4541","Apheresis RED BLOOD CELLS|ACD-A>AS3/XX/refg|Irradiated|1st container",{"$f":"Table1[[#This Row],[E Code]]&\"V00\"","v":"E4541V00"},{"$f":"CODE128(Table1[[#This Row],[Barcode Value1]])","v":"Ì=<EÇMIÈV00<Î"},{"$f":"\"=<\"&Table1[[#This Row],[E Code]]&\"V00\"","v":"=<E4541V00"}]
["Apheresis RED BLOOD CELLS","Irradiated","E4542","Apheresis RED BLOOD CELLS|ACD-A>AS3/XX/refg|Irradiated|2nd container",{"$f":"Table1[[#This Row],[E Code]]&\"V00\"","v":"E4542V00"},{"$f":"CODE128(Table1[[#This Row],[Barcode Value1]])","v":"Ì=<EÇMJÈV00BÎ"},{"$f":"\"=<\"&Table1[[#This Row],[E Code]]&\"V00\"","v":"=<E4542V00"}]
["Apheresis RED BLOOD CELLS","Leukoreduced","E4531","Apheresis RED BLOOD CELLS|ACD-A>AS1/XX/refg|ResLeu:<5E6",{"$f":"Table1[[#This Row],[E Code]]&\"V00\"","v":"E4531V00"},{"$f":"CODE128(Table1[[#This Row],[Barcode Value1]])","v":"Ì=<EÇM?ÈV00gÎ"},{"$f":"\"=<\"&Table1[[#This Row],[E Code]]&\"V00\"","v":"=<E4531V00"}]
["Apheresis RED BLOOD CELLS","Leukoreduced","E4532","Apheresis RED BLOOD CELLS|ACD-A>AS1/XX/refg|ResLeu:<5E6|1st container",{"$f":"Table1[[#This Row],[E Code]]&\"V00\"","v":"E4532V00"},{"$f":"CODE128(Table1[[#This Row],[Barcode Value1]])","v":"Ì=<EÇM@ÈV00mÎ"},{"$f":"\"=<\"&Table1[[#This Row],[E Code]]&\"V00\"","v":"=<E4532V00"}]
["Apheresis RED BLOOD CELLS","Leukoreduced","E4533","Apheresis RED BLOOD CELLS|ACD-A>AS1/XX/refg|ResLeu:<5E6|2nd container",{"$f":"Table1[[#This Row],[E Code]]&\"V00\"","v":"E4533V00"},{"$f":"CODE128(Table1[[#This Row],[Barcode Value1]])","v":"Ì=<EÇMAÈV00sÎ"},{"$f":"\"=<\"&Table1[[#This Row],[E Code]]&\"V00\"","v":"=<E4533V00"}]
["Apheresis RED BLOOD CELLS","Leukoreduced","E4543","Apheresis RED BLOOD CELLS|ACD-A>AS3/XX/refg|ResLeu:<5E6",{"$f":"Table1[[#This Row],[E Code]]&\"V00\"","v":"E4543V00"},{"$f":"CODE128(Table1[[#This Row],[Barcode Value1]])","v":"Ì=<EÇMKÈV00HÎ"},{"$f":"\"=<\"&Table1[[#This Row],[E Code]]&\"V00\"","v":"=<E4543V00"}]
["Apheresis RED BLOOD CELLS","Leukoreduced","E4544","Apheresis RED BLOOD CELLS|ACD-A>AS3/XX/refg|ResLeu:<5E6|1st container",{"$f":"Table1[[#This Row],[E Code]]&\"V00\"","v":"E4544V00"},{"$f":"CODE128(Table1[[#This Row],[Barcode Value1]])","v":"Ì=<EÇMLÈV00NÎ"},{"$f":"\"=<\"&Table1[[#This Row],[E Code]]&\"V00\"","v":"=<E4544V00"}]
["Apheresis RED BLOOD CELLS","Leukoreduced","E4545","Apheresis RED BLOOD CELLS|ACD-A>AS3/XX/refg|ResLeu:<5E6|2nd container",{"$f":"Table1[[#This Row],[E Code]]&\"V00\"","v":"E4545V00"},{"$f":"CODE128(Table1[[#This Row],[Barcode Value1]])","v":"Ì=<EÇMMÈV00TÎ"},{"$f":"\"=<\"&Table1[[#This Row],[E Code]]&\"V00\"","v":"=<E4545V00"}]
["Apheresis RED BLOOD CELLS","Leukoreduced, Irradiated","E4526","Apheresis RED BLOOD CELLS|ACD-A>AS1/XX/refg|Irradiated|ResLeu:<5E6",{"$f":"Table1[[#This Row],[E Code]]&\"V00\"","v":"E4526V00"},{"$f":"CODE128(Table1[[#This Row],[Barcode Value1]])","v":"Ì=<EÇM:ÈV00IÎ"},{"$f":"\"=<\"&Table1[[#This Row],[E Code]]&\"V00\"","v":"=<E4526V00"}]
["Apheresis RED BLOOD CELLS","Leukoreduced, Irradiated","E4527","Apheresis RED BLOOD CELLS|ACD-A>AS1/XX/refg|Irradiated|ResLeu:<5E6|1st container",{"$f":"Table1[[#This Row],[E Code]]&\"V00\"","v":"E4527V00"},{"$f":"CODE128(Table1[[#This Row],[Barcode Value1]])","v":"Ì=<EÇM;ÈV00OÎ"},{"$f":"\"=<\"&Table1[[#This Row],[E Code]]&\"V00\"","v":"=<E4527V00"}]
["Apheresis RED BLOOD CELLS","Leukoreduced, Irradiated","E4528","Apheresis RED BLOOD CELLS|ACD-A>AS1/XX/refg|Irradiated|ResLeu:<5E6|2nd container",{"$f":"Table1[[#This Row],[E Code]]&\"V00\"","v":"E4528V00"},{"$f":"CODE128(Table1[[#This Row],[Barcode Value1]])","v":"Ì=<EÇM<ÈV00UÎ"},{"$f":"\"=<\"&Table1[[#This Row],[E Code]]&\"V00\"","v":"=<E4528V00"}]
["Apheresis RED BLOOD CELLS","Leukoreduced, Irradiated","E4538","Apheresis RED BLOOD CELLS|ACD-A>AS3/XX/refg|Irradiated|ResLeu:<5E6",{"$f":"Table1[[#This Row],[E Code]]&\"V00\"","v":"E4538V00"},{"$f":"CODE128(Table1[[#This Row],[Barcode Value1]])","v":"Ì=<EÇMFÈV00*Î"},{"$f":"\"=<\"&Table1[[#This Row],[E Code]]&\"V00\"","v":"=<E4538V00"}]
["Apheresis RED BLOOD CELLS","Leukoreduced, Irradiated","E4539","Apheresis RED BLOOD CELLS|ACD-A>AS3/XX/refg|Irradiated|ResLeu:<5E6|1st container",{"$f":"Table1[[#This Row],[E Code]]&\"V00\"","v":"E4539V00"},{"$f":"CODE128(Table1[[#This Row],[Barcode Value1]])","v":"Ì=<EÇMGÈV000Î"},{"$f":"\"=<\"&Table1[[#This Row],[E Code]]&\"V00\"","v":"=<E4539V00"}]
["Apheresis RED BLOOD CELLS","Leukoreduced, Irradiated","E4540","Apheresis RED BLOOD CELLS|ACD-A>AS3/XX/refg|Irradiated|ResLeu:<5E6|2nd container",{"$f":"Table1[[#This Row],[E Code]]&\"V00\"","v":"E4540V00"},{"$f":"CODE128(Table1[[#This Row],[Barcode Value1]])","v":"Ì=<EÇMHÈV006Î"},{"$f":"\"=<\"&Table1[[#This Row],[E Code]]&\"V00\"","v":"=<E4540V00"}]
["Apheresis RED BLOOD CELLS","N/A","E4524","Apheresis RED BLOOD CELLS|ACD-A>AS1/XX/refg",{"$f":"Table1[[#This Row],[E Code]]&\"V00\"","v":"E4524V00"},{"$f":"CODE128(Table1[[#This Row],[Barcode Value1]])","v":"Ì=<EÇM8ÈV00=Î"},{"$f":"\"=<\"&Table1[[#This Row],[E Code]]&\"V00\"","v":"=<E4524V00"}]
["Apheresis RED BLOOD CELLS","N/A","E4534","Apheresis RED BLOOD CELLS|ACD-A>AS1/XX/refg|1st container",{"$f":"Table1[[#This Row],[E Code]]&\"V00\"","v":"E4534V00"},{"$f":"CODE128(Table1[[#This Row],[Barcode Value1]])","v":"Ì=<EÇMBÈV00yÎ"},{"$f":"\"=<\"&Table1[[#This Row],[E Code]]&\"V00\"","v":"=<E4534V00"}]
["Apheresis RED BLOOD CELLS","N/A","E4535","Apheresis RED BLOOD CELLS|ACD-A>AS1/XX/refg|2nd container",{"$f":"Table1[[#This Row],[E Code]]&\"V00\"","v":"E4535V00"},{"$f":"CODE128(Table1[[#This Row],[Barcode Value1]])","v":"Ì=<EÇMCÈV00ÃÎ"},{"$f":"\"=<\"&Table1[[#This Row],[E Code]]&\"V00\"","v":"=<E4535V00"}]
["Apheresis RED BLOOD CELLS","N/A","E4536","Apheresis RED BLOOD CELLS|ACD-A>AS3/XX/refg",{"$f":"Table1[[#This Row],[E Code]]&\"V00\"","v":"E4536V00"},{"$f":"CODE128(Table1[[#This Row],[Barcode Value1]])","v":"Ì=<EÇMDÈV00ÉÎ"},{"$f":"\"=<\"&Table1[[#This Row],[E Code]]&\"V00\"","v":"=<E4536V00"}]
["Apheresis RED BLOOD CELLS","N/A","E4546","Apheresis RED BLOOD CELLS|ACD-A>AS3/XX/refg|1st container",{"$f":"Table1[[#This Row],[E Code]]&\"V00\"","v":"E4546V00"},{"$f":"CODE128(Table1[[#This Row],[Barcode Value1]])","v":"Ì=<EÇMNÈV00ZÎ"},{"$f":"\"=<\"&Table1[[#This Row],[E Code]]&\"V00\"","v":"=<E4546V00"}]
["Apheresis RED BLOOD CELLS","N/A","E4547","Apheresis RED BLOOD CELLS|ACD-A>AS3/XX/refg|2nd container",{"$f":"Table1[[#This Row],[E Code]]&\"V00\"","v":"E4547V00"},{"$f":"CODE128(Table1[[#This Row],[Barcode Value1]])","v":"Ì=<EÇMOÈV00`Î"},{"$f":"\"=<\"&Table1[[#This Row],[E Code]]&\"V00\"","v":"=<E4547V00"}]
["CONVALESCENT PLASMA","N/A","E9749","CONVALESCENT PLASMA|NS/XX/Frozen|COVID-19",{"$f":"Table1[[#This Row],[E Code]]&\"V00\"","v":"E9749V00"},{"$f":"CODE128(Table1[[#This Row],[Barcode Value1]])","v":"Ì=<EÇÅQÈV00;Î"},{"$f":"\"=<\"&Table1[[#This Row],[E Code]]&\"V00\"","v":"=<E9749V00"}]
["CRYOPRECIPITATE","N/A","E5165","CRYOPRECIPITATE|None/XX/<=-18C",{"$f":"Table1[[#This Row],[E Code]]&\"V00\"","v":"E5165V00"},{"$f":"CODE128(Table1[[#This Row],[Barcode Value1]])","v":"Ì=<EÇSaÈV00ÇÎ"},{"$f":"\"=<\"&Table1[[#This Row],[E Code]]&\"V00\"","v":"=<E5165V00"}]
["Deglycerolized Apheresis RED BLOOD CELLS","Leukoreduced","E9616","Deglycerolized Apheresis RED BLOOD CELLS|AS3/XX/refg|Open|ResLeu:<5E6",{"$f":"Table1[[#This Row],[E Code]]&\"V00\"","v":"E9616V00"},{"$f":"CODE128(Table1[[#This Row],[Barcode Value1]])","v":"Ì=<EÇÄ0ÈV00>Î"},{"$f":"\"=<\"&Table1[[#This Row],[E Code]]&\"V00\"","v":"=<E9616V00"}]
["Deglycerolized Apheresis RED BLOOD CELLS","Leukoreduced","E6653","Deglycerolized Apheresis RED BLOOD CELLS|AS3/XX/refg|Open|ResLeu:<5E6|1st container",{"$f":"Table1[[#This Row],[E Code]]&\"V00\"","v":"E6653V00"},{"$f":"CODE128(Table1[[#This Row],[Barcode Value1]])","v":"Ì=<EÇbUÈV00ÊÎ"},{"$f":"\"=<\"&Table1[[#This Row],[E Code]]&\"V00\"","v":"=<E6653V00"}]
["Deglycerolized Apheresis RED BLOOD CELLS","Leukoreduced","E6654","Deglycerolized Apheresis RED BLOOD CELLS|AS3/XX/refg|Open|ResLeu:<5E6|2nd container",{"$f":"Table1[[#This Row],[E Code]]&\"V00\"","v":"E6654V00"},{"$f":"CODE128(Table1[[#This Row],[Barcode Value1]])","v":"Ì=<EÇbVÈV00%Î"},{"$f":"\"=<\"&Table1[[#This Row],[E Code]]&\"V00\"","v":"=<E6654V00"}]
["Deglycerolized Apheresis RED BLOOD CELLS","Leukoreduced","E8673","Deglycerolized Apheresis RED BLOOD CELLS|AS3/XX/refg|ResLeu:<5E6",{"$f":"Table1[[#This Row],[E Code]]&\"V00\"","v":"E8673V00"},{"$f":"CODE128(Table1[[#This Row],[Barcode Value1]])","v":"Ì=<EÇviÈV00-Î"},{"$f":"\"=<\"&Table1[[#This Row],[E Code]]&\"V00\"","v":"=<E8673V00"}]
["Deglycerolized Apheresis RED BLOOD CELLS","Leukoreduced","E6067","Deglycerolized Apheresis RED BLOOD CELLS|AS3/XX/refg|ResLeu:<5E6|1st container",{"$f":"Table1[[#This Row],[E Code]]&\"V00\"","v":"E6067V00"},{"$f":"CODE128(Table1[[#This Row],[Barcode Value1]])","v":"Ì=<EÇ\\cÈV00UÎ"},{"$f":"\"=<\"&Table1[[#This Row],[E Code]]&\"V00\"","v":"=<E6067V00"}]
["Deglycerolized Apheresis RED BLOOD CELLS","Leukoreduced","E6068","Deglycerolized Apheresis RED BLOOD CELLS|AS3/XX/refg|ResLeu:<5E6|2nd container",{"$f":"Table1[[#This Row],[E Code]]&\"V00\"","v":"E6068V00"},{"$f":"CODE128(Table1[[#This Row],[Barcode Value1]])","v":"Ì=<EÇ\\dÈV00[Î"},{"$f":"\"=<\"&Table1[[#This Row],[E Code]]&\"V00\"","v":"=<E6068V00"}]
["Deglycerolized Apheresis RED BLOOD CELLS","Leukoreduced","E4587","Deglycerolized Apheresis RED BLOOD CELLS|None/XX/refg|Open|ResLeu:<5E6",{"$f":"Table1[[#This Row],[E Code]]&\"V00\"","v":"E4587V00"},{"$f":"CODE128(Table1[[#This Row],[Barcode Value1]])","v":"Ì=<EÇMwÈV00ÆÎ"},{"$f":"\"=<\"&Table1[[#This Row],[E Code]]&\"V00\"","v":"=<E4587V00"}]
["Deglycerolized Apheresis RED BLOOD CELLS","Leukoreduced","E4588","Deglycerolized Apheresis RED BLOOD CELLS|None/XX/refg|Open|ResLeu:<5E6|1st container",{"$f":"Table1[[#This Row],[E Code]]&\"V00\"","v":"E4588V00"},{"$f":"CODE128(Table1[[#This Row],[Barcode Value1]])","v":"Ì=<EÇMxÈV00!Î"},{"$f":"\"=<\"&Table1[[#This Row],[E Code]]&\"V00\"","v":"=<E4588V00"}]
["Deglycerolized Apheresis RED BLOOD CELLS","Leukoreduced","E4589","Deglycerolized Apheresis RED BLOOD CELLS|None/XX/refg|Open|ResLeu:<5E6|2nd container",{"$f":"Table1[[#This Row],[E Code]]&\"V00\"","v":"E4589V00"},{"$f":"CODE128(Table1[[#This Row],[Barcode Value1]])","v":"Ì=<EÇMyÈV00'Î"},{"$f":"\"=<\"&Table1[[#This Row],[E Code]]&\"V00\"","v":"=<E4589V00"}]
["Deglycerolized Apheresis RED BLOOD CELLS","Leukoreduced, Irradiated","E8672","Deglycerolized Apheresis RED BLOOD CELLS|AS3/XX/refg|Irradiated|ResLeu:<5E6",{"$f":"Table1[[#This Row],[E Code]]&\"V00\"","v":"E8672V00"},{"$f":"CODE128(Table1[[#This Row],[Barcode Value1]])","v":"Ì=<EÇvhÈV00'Î"},{"$f":"\"=<\"&Table1[[#This Row],[E Code]]&\"V00\"","v":"=<E8672V00"}]
["Deglycerolized Apheresis RED BLOOD CELLS","Leukoreduced, Irradiated","E6069","Deglycerolized Apheresis RED BLOOD CELLS|AS3/XX/refg|Irradiated|ResLeu:<5E6|1st container",{"$f":"Table1[[#This Row],[E Code]]&\"V00\"","v":"E6069V00"},{"$f":"CODE128(Table1[[#This Row],[Barcode Value1]])","v":"Ì=<EÇ\\eÈV00aÎ"},{"$f":"\"=<\"&Table1[[#This Row],[E Code]]&\"V00\"","v":"=<E6069V00"}]
["Deglycerolized Apheresis RED BLOOD CELLS","Leukoreduced, Irradiated","E6070","Deglycerolized Apheresis RED BLOOD CELLS|AS3/XX/refg|Irradiated|ResLeu:<5E6|2nd container",{"$f":"Table1[[#This Row],[E Code]]&\"V00\"","v":"E6070V00"},{"$f":"CODE128(Table1[[#This Row],[Barcode Value1]])","v":"Ì=<EÇ\\fÈV00gÎ"},{"$f":"\"=<\"&Table1[[#This Row],[E Code]]&\"V00\"","v":"=<E6070V00"}]
["Deglycerolized Apheresis RED BLOOD CELLS","Leukoreduced, Irradiated","E6655","Deglycerolized Apheresis RED BLOOD CELLS|AS3/XX/refg|Open|Irradiated|ResLeu:<5E6|1st container",{"$f":"Table1[[#This Row],[E Code]]&\"V00\"","v":"E6655V00"},{"$f":"CODE128(Table1[[#This Row],[Barcode Value1]])","v":"Ì=<EÇbWÈV00+Î"},{"$f":"\"=<\"&Table1[[#This Row],[E Code]]&\"V00\"","v":"=<E6655V00"}]
["Deglycerolized Apheresis RED BLOOD CELLS","Leukoreduced, Irradiated","E6656","Deglycerolized Apheresis RED BLOOD CELLS|AS3/XX/refg|Open|Irradiated|ResLeu:<5E6|2nd container",{"$f":"Table1[[#This Row],[E Code]]&\"V00\"","v":"E6656V00"},{"$f":"CODE128(Table1[[#This Row],[Barcode Value1]])","v":"Ì=<EÇbXÈV001Î"},{"$f":"\"=<\"&Table1[[#This Row],[E Code]]&\"V00\"","v":"=<E6656V00"}]
["Deglycerolized Apheresis RED BLOOD CELLS","Leukoreduced, Irradiated","E4582","Deglycerolized Apheresis RED BLOOD CELLS|None/XX/refg|Open|Irradiated|ResLeu:<5E6",{"$f":"Table1[[#This Row],[E Code]]&\"V00\"","v":"E4582V00"},{"$f":"CODE128(Table1[[#This Row],[Barcode Value1]])","v":"Ì=<EÇMrÈV00dÎ"},{"$f":"\"=<\"&Table1[[#This Row],[E Code]]&\"V00\"","v":"=<E4582V00"}]
["Deglycerolized Apheresis RED BLOOD CELLS","Leukoreduced, Irradiated","E4583","Deglycerolized Apheresis RED BLOOD CELLS|None/XX/refg|Open|Irradiated|ResLeu:<5E6|1st container",{"$f":"Table1[[#This Row],[E Code]]&\"V00\"","v":"E4583V00"},{"$f":"CODE128(Table1[[#This Row],[Barcode Value1]])","v":"Ì=<EÇMsÈV00jÎ"},{"$f":"\"=<\"&Table1[[#This Row],[E Code]]&\"V00\"","v":"=<E4583V00"}]
["Deglycerolized Apheresis RED BLOOD CELLS","Leukoreduced, Irradiated","E4584","Deglycerolized Apheresis RED BLOOD CELLS|None/XX/refg|Open|Irradiated|ResLeu:<5E6|2nd container",{"$f":"Table1[[#This Row],[E Code]]&\"V00\"","v":"E4584V00"},{"$f":"CODE128(Table1[[#This Row],[Barcode Value1]])","v":"Ì=<EÇMtÈV00pÎ"},{"$f":"\"=<\"&Table1[[#This Row],[E Code]]&\"V00\"","v":"=<E4584V00"}]
["Deglycerolized RED BLOOD CELLS","Irradiated","E4996","Deglycerolized RED BLOOD CELLS|AS3/XX/refg|Irradiated",{"$f":"Table1[[#This Row],[E Code]]&\"V00\"","v":"E4996V00"},{"$f":"CODE128(Table1[[#This Row],[Barcode Value1]])","v":"Ì=<EÇQÄÈV00eÎ"},{"$f":"\"=<\"&Table1[[#This Row],[E Code]]&\"V00\"","v":"=<E4996V00"}]
["Deglycerolized RED BLOOD CELLS","Irradiated","E5634","Deglycerolized RED BLOOD CELLS|AS3/XX/refg|Open|Irradiated",{"$f":"Table1[[#This Row],[E Code]]&\"V00\"","v":"E5634V00"},{"$f":"CODE128(Table1[[#This Row],[Barcode Value1]])","v":"Ì=<EÇXBÈV00IÎ"},{"$f":"\"=<\"&Table1[[#This Row],[E Code]]&\"V00\"","v":"=<E5634V00"}]
["Deglycerolized RED BLOOD CELLS","Irradiated","E4522","Deglycerolized RED BLOOD CELLS|None/XX/refg|Open|Irradiated",{"$f":"Table1[[#This Row],[E Code]]&\"V00\"","v":"E4522V00"},{"$f":"CODE128(Table1[[#This Row],[Barcode Value1]])","v":"Ì=<EÇM6ÈV001Î"},{"$f":"\"=<\"&Table1[[#This Row],[E Code]]&\"V00\"","v":"=<E4522V00"}]
["Deglycerolized RED BLOOD CELLS","Leukoreduced","E5635","Deglycerolized RED BLOOD CELLS|AS3/XX/refg|Open|ResLeu:<5E6",{"$f":"Table1[[#This Row],[E Code]]&\"V00\"","v":"E5635V00"},{"$f":"CODE128(Table1[[#This Row],[Barcode Value1]])","v":"Ì=<EÇXCÈV00OÎ"},{"$f":"\"=<\"&Table1[[#This Row],[E Code]]&\"V00\"","v":"=<E5635V00"}]
["Deglycerolized RED BLOOD CELLS","Leukoreduced","E4995","Deglycerolized RED BLOOD CELLS|AS3/XX/refg|ResLeu:<5E6",{"$f":"Table1[[#This Row],[E Code]]&\"V00\"","v":"E4995V00"},{"$f":"CODE128(Table1[[#This Row],[Barcode Value1]])","v":"Ì=<EÇQÃÈV00_Î"},{"$f":"\"=<\"&Table1[[#This Row],[E Code]]&\"V00\"","v":"=<E4995V00"}]
["Deglycerolized RED BLOOD CELLS","Leukoreduced","E4519","Deglycerolized RED BLOOD CELLS|None/XX/refg|Open|ResLeu:<5E6",{"$f":"Table1[[#This Row],[E Code]]&\"V00\"","v":"E4519V00"},{"$f":"CODE128(Table1[[#This Row],[Barcode Value1]])","v":"Ì=<EÇM3ÈV00ÊÎ"},{"$f":"\"=<\"&Table1[[#This Row],[E Code]]&\"V00\"","v":"=<E4519V00"}]
["Deglycerolized RED BLOOD CELLS","Leukoreduced, Irradiated","E4997","Deglycerolized RED BLOOD CELLS|AS3/XX/refg|Irradiated|ResLeu:<5E6",{"$f":"Table1[[#This Row],[E Code]]&\"V00\"","v":"E4997V00"},{"$f":"CODE128(Table1[[#This Row],[Barcode Value1]])","v":"Ì=<EÇQÅÈV00kÎ"},{"$f":"\"=<\"&Table1[[#This Row],[E Code]]&\"V00\"","v":"=<E4997V00"}]
["Deglycerolized RED BLOOD CELLS","Leukoreduced, Irradiated","E5633","Deglycerolized RED BLOOD CELLS|AS3/XX/refg|Open|Irradiated|ResLeu:<5E6",{"$f":"Table1[[#This Row],[E Code]]&\"V00\"","v":"E5633V00"},{"$f":"CODE128(Table1[[#This Row],[Barcode Value1]])","v":"Ì=<EÇXAÈV00CÎ"},{"$f":"\"=<\"&Table1[[#This Row],[E Code]]&\"V00\"","v":"=<E5633V00"}]
["Deglycerolized RED BLOOD CELLS","Leukoreduced, Irradiated","E4521","Deglycerolized RED BLOOD CELLS|None/XX/refg|Open|Irradiated|ResLeu:<5E6",{"$f":"Table1[[#This Row],[E Code]]&\"V00\"","v":"E4521V00"},{"$f":"CODE128(Table1[[#This Row],[Barcode Value1]])","v":"Ì=<EÇM5ÈV00+Î"},{"$f":"\"=<\"&Table1[[#This Row],[E Code]]&\"V00\"","v":"=<E4521V00"}]
["Deglycerolized RED BLOOD CELLS","N/A","E4994","Deglycerolized RED BLOOD CELLS|AS3/XX/refg",{"$f":"Table1[[#This Row],[E Code]]&\"V00\"","v":"E4994V00"},{"$f":"CODE128(Table1[[#This Row],[Barcode Value1]])","v":"Ì=<EÇQ~ÈV00YÎ"},{"$f":"\"=<\"&Table1[[#This Row],[E Code]]&\"V00\"","v":"=<E4994V00"}]
["Deglycerolized RED BLOOD CELLS","N/A","E5632","Deglycerolized RED BLOOD CELLS|AS3/XX/refg|Open",{"$f":"Table1[[#This Row],[E Code]]&\"V00\"","v":"E5632V00"},{"$f":"CODE128(Table1[[#This Row],[Barcode Value1]])","v":"Ì=<EÇX@ÈV00=Î"},{"$f":"\"=<\"&Table1[[#This Row],[E Code]]&\"V00\"","v":"=<E5632V00"}]
["Deglycerolized RED BLOOD CELLS","N/A","E4520","Deglycerolized RED BLOOD CELLS|None/XX/refg|Open",{"$f":"Table1[[#This Row],[E Code]]&\"V00\"","v":"E4520V00"},{"$f":"CODE128(Table1[[#This Row],[Barcode Value1]])","v":"Ì=<EÇM4ÈV00%Î"},{"$f":"\"=<\"&Table1[[#This Row],[E Code]]&\"V00\"","v":"=<E4520V00"}]
["FRESH FROZEN PLASMA","N/A","E0713","FRESH FROZEN PLASMA|CP2D/XX/<=-18C",{"$f":"Table1[[#This Row],[E Code]]&\"V00\"","v":"E0713V00"},{"$f":"CODE128(Table1[[#This Row],[Barcode Value1]])","v":"Ì=<EÇ'-ÈV00rÎ"},{"$f":"\"=<\"&Table1[[#This Row],[E Code]]&\"V00\"","v":"=<E0713V00"}]
["FRESH FROZEN PLASMA","N/A","E0701","FRESH FROZEN PLASMA|CPD/XX/<=-18C",{"$f":"Table1[[#This Row],[E Code]]&\"V00\"","v":"E0701V00"},{"$f":"CODE128(Table1[[#This Row],[Barcode Value1]])","v":"Ì=<EÇ'!ÈV00*Î"},{"$f":"\"=<\"&Table1[[#This Row],[E Code]]&\"V00\"","v":"=<E0701V00"}]
["FRESH FROZEN PLASMA","N/A","E0707","FRESH FROZEN PLASMA|CPDA-1/XX/<=-18C",{"$f":"Table1[[#This Row],[E Code]]&\"V00\"","v":"E0707V00"},{"$f":"CODE128(Table1[[#This Row],[Barcode Value1]])","v":"Ì=<EÇ''ÈV00NÎ"},{"$f":"\"=<\"&Table1[[#This Row],[E Code]]&\"V00\"","v":"=<E0707V00"}]
["Liquid CONVALESCENT PLASMA","N/A","E9751","Liquid CONVALESCENT PLASMA|NS/XX/refg|COVID-19",{"$f":"Table1[[#This Row],[E Code]]&\"V00\"","v":"E9751V00"},{"$f":"CODE128(Table1[[#This Row],[Barcode Value1]])","v":"Ì=<EÇÅSÈV00GÎ"},{"$f":"\"=<\"&Table1[[#This Row],[E Code]]&\"V00\"","v":"=<E9751V00"}]
["Liquid PLASMA","N/A","E2469","Liquid PLASMA|CP2D/XX/refg",{"$f":"Table1[[#This Row],[E Code]]&\"V00\"","v":"E2469V00"},{"$f":"CODE128(Table1[[#This Row],[Barcode Value1]])","v":"Ì=<EÇ8eÈV00{Î"},{"$f":"\"=<\"&Table1[[#This Row],[E Code]]&\"V00\"","v":"=<E2469V00"}]
["Liquid PLASMA","N/A","E2457","Liquid PLASMA|CPD/XX/refg",{"$f":"Table1[[#This Row],[E Code]]&\"V00\"","v":"E2457V00"},{"$f":"CODE128(Table1[[#This Row],[Barcode Value1]])","v":"Ì=<EÇ8YÈV003Î"},{"$f":"\"=<\"&Table1[[#This Row],[E Code]]&\"V00\"","v":"=<E2457V00"}]
["Liquid PLASMA","N/A","E2463","Liquid PLASMA|CPDA-1/XX/refg",{"$f":"Table1[[#This Row],[E Code]]&\"V00\"","v":"E2463V00"},{"$f":"CODE128(Table1[[#This Row],[Barcode Value1]])","v":"Ì=<EÇ8_ÈV00WÎ"},{"$f":"\"=<\"&Table1[[#This Row],[E Code]]&\"V00\"","v":"=<E2463V00"}]
["PLASMA","Cryo Reduced","E2617","PLASMA|CP2D/XX/<=-18C|Cryo reduced",{"$f":"Table1[[#This Row],[E Code]]&\"V00\"","v":"E2617V00"},{"$f":"CODE128(Table1[[#This Row],[Barcode Value1]])","v":"Ì=<EÇ:1ÈV00ÆÎ"},{"$f":"\"=<\"&Table1[[#This Row],[E Code]]&\"V00\"","v":"=<E2617V00"}]
["PLASMA","Cryo Reduced","E2553","PLASMA|CPD/XX/<=-18C|Cryo reduced",{"$f":"Table1[[#This Row],[E Code]]&\"V00\"","v":"E2553V00"},{"$f":"CODE128(Table1[[#This Row],[Barcode Value1]])","v":"Ì=<EÇ9UÈV00ÂÎ"},{"$f":"\"=<\"&Table1[[#This Row],[E Code]]&\"V00\"","v":"=<E2553V00"}]
["PLASMA","Cryo Reduced","E2585","PLASMA|CPDA-1/XX/<=-18C|Cryo reduced",{"$f":"Table1[[#This Row],[E Code]]&\"V00\"","v":"E2585V00"},{"$f":"CODE128(Table1[[#This Row],[Barcode Value1]])","v":"Ì=<EÇ9uÈV00yÎ"},{"$f":"\"=<\"&Table1[[#This Row],[E Code]]&\"V00\"","v":"=<E2585V00"}]
["PLASMA","N/A","E2619","PLASMA|CP2D/XX/<=-18C|Frozen <=24h",{"$f":"Table1[[#This Row],[E Code]]&\"V00\"","v":"E2619V00"},{"$f":"CODE128(Table1[[#This Row],[Barcode Value1]])","v":"Ì=<EÇ:3ÈV00'Î"},{"$f":"\"=<\"&Table1[[#This Row],[E Code]]&\"V00\"","v":"=<E2619V00"}]
["PLASMA","N/A","E2555","PLASMA|CPD/XX/<=-18C|Frozen <=24h",{"$f":"Table1[[#This Row],[E Code]]&\"V00\"","v":"E2555V00"},{"$f":"CODE128(Table1[[#This Row],[Barcode Value1]])","v":"Ì=<EÇ9WÈV00,Î"},{"$f":"\"=<\"&Table1[[#This Row],[E Code]]&\"V00\"","v":"=<E2555V00"}]
["PLASMA","N/A","E2587","PLASMA|CPDA-1/XX/<=-18C|Frozen <=24h",{"$f":"Table1[[#This Row],[E Code]]&\"V00\"","v":"E2587V00"},{"$f":"CODE128(Table1[[#This Row],[Barcode Value1]])","v":"Ì=<EÇ9wÈV00ÉÎ"},{"$f":"\"=<\"&Table1[[#This Row],[E Code]]&\"V00\"","v":"=<E2587V00"}]
["POOLED CRYOPRECIPITATE","N/A","E6553","POOLED CRYOPRECIPITATE|None/XX/<=-18C|10 units",{"$f":"Table1[[#This Row],[E Code]]&\"V00\"","v":"E6553V00"},{"$f":"CODE128(Table1[[#This Row],[Barcode Value1]])","v":"Ì=<EÇaUÈV00ÅÎ"},{"$f":"\"=<\"&Table1[[#This Row],[E Code]]&\"V00\"","v":"=<E6553V00"}]
["POOLED CRYOPRECIPITATE","N/A","E8602","POOLED CRYOPRECIPITATE|None/XX/<=-18C|2 units",{"$f":"Table1[[#This Row],[E Code]]&\"V00\"","v":"E8602V00"},{"$f":"CODE128(Table1[[#This Row],[Barcode Value1]])","v":"Ì=<EÇv\"ÈV00ÊÎ"},{"$f":"\"=<\"&Table1[[#This Row],[E Code]]&\"V00\"","v":"=<E8602V00"}]
["POOLED CRYOPRECIPITATE","N/A","E8603","POOLED CRYOPRECIPITATE|None/XX/<=-18C|3 units",{"$f":"Table1[[#This Row],[E Code]]&\"V00\"","v":"E8603V00"},{"$f":"CODE128(Table1[[#This Row],[Barcode Value1]])","v":"Ì=<EÇv#ÈV00%Î"},{"$f":"\"=<\"&Table1[[#This Row],[E Code]]&\"V00\"","v":"=<E8603V00"}]
["POOLED CRYOPRECIPITATE","N/A","E7884","POOLED CRYOPRECIPITATE|None/XX/<=-18C|4 units",{"$f":"Table1[[#This Row],[E Code]]&\"V00\"","v":"E7884V00"},{"$f":"CODE128(Table1[[#This Row],[Barcode Value1]])","v":"Ì=<EÇntÈV00GÎ"},{"$f":"\"=<\"&Table1[[#This Row],[E Code]]&\"V00\"","v":"=<E7884V00"}]
["POOLED CRYOPRECIPITATE","N/A","E5621","POOLED CRYOPRECIPITATE|None/XX/<=-18C|5 units",{"$f":"Table1[[#This Row],[E Code]]&\"V00\"","v":"E5621V00"},{"$f":"CODE128(Table1[[#This Row],[Barcode Value1]])","v":"Ì=<EÇX5ÈV00bÎ"},{"$f":"\"=<\"&Table1[[#This Row],[E Code]]&\"V00\"","v":"=<E5621V00"}]
["POOLED FIBRINOGEN COMPLEX","Pathogen Reduced","EA493","POOLED FIBRINOGEN COMPLEX|None/XX/<=-18C|Cryoprecipitated|Psoralen-treated|From 10 donors",{"$f":"Table1[[#This Row],[E Code]]&\"V00\"","v":"EA493V00"},{"$f":"CODE128(Table1[[#This Row],[Barcode Value1]])","v":"Ì=<EA493V00&Î"},{"$f":"\"=<\"&Table1[[#This Row],[E Code]]&\"V00\"","v":"=<EA493V00"}]
["POOLED FIBRINOGEN COMPLEX","Pathogen Reduced","EA489","POOLED FIBRINOGEN COMPLEX|None/XX/<=-18C|Cryoprecipitated|Psoralen-treated|From 2 donors",{"$f":"Table1[[#This Row],[E Code]]&\"V00\"","v":"EA489V00"},{"$f":"CODE128(Table1[[#This Row],[Barcode Value1]])","v":"Ì=<EA489V00JÎ"},{"$f":"\"=<\"&Table1[[#This Row],[E Code]]&\"V00\"","v":"=<EA489V00"}]
["POOLED FIBRINOGEN COMPLEX","Pathogen Reduced","EA490","POOLED FIBRINOGEN COMPLEX|None/XX/<=-18C|Cryoprecipitated|Psoralen-treated|From 4 donors",{"$f":"Table1[[#This Row],[E Code]]&\"V00\"","v":"EA490V00"},{"$f":"CODE128(Table1[[#This Row],[Barcode Value1]])","v":"Ì=<EA490V00xÎ"},{"$f":"\"=<\"&Table1[[#This Row],[E Code]]&\"V00\"","v":"=<EA490V00"}]
["POOLED FIBRINOGEN COMPLEX","Pathogen Reduced","EA491","POOLED FIBRINOGEN COMPLEX|None/XX/<=-18C|Cryoprecipitated|Psoralen-treated|From 6 donors",{"$f":"Table1[[#This Row],[E Code]]&\"V00\"","v":"EA491V00"},{"$f":"CODE128(Table1[[#This Row],[Barcode Value1]])","v":"Ì=<EA491V00ÃÎ"},{"$f":"\"=<\"&Table1[[#This Row],[E Code]]&\"V00\"","v":"=<EA491V00"}]
["POOLED FIBRINOGEN COMPLEX","Pathogen Reduced","EA492","POOLED FIBRINOGEN COMPLEX|None/XX/<=-18C|Cryoprecipitated|Psoralen-treated|From 8 donors",{"$f":"Table1[[#This Row],[E Code]]&\"V00\"","v":"EA492V00"},{"$f":"CODE128(Table1[[#This Row],[Barcode Value1]])","v":"Ì=<EA492V00ÊÎ"},{"$f":"\"=<\"&Table1[[#This Row],[E Code]]&\"V00\"","v":"=<EA492V00"}]
["POOLED PLASMA","Cryo Reduced, Pathogen Reduced","EA512","POOLED PLASMA|CP2D/XX/<=-18C|Cryo reduced|Psoralen-treated|From 2 donors",{"$f":"Table1[[#This Row],[E Code]]&\"V00\"","v":"EA512V00"},{"$f":"CODE128(Table1[[#This Row],[Barcode Value1]])","v":"Ì=<EA512V00[Î"},{"$f":"\"=<\"&Table1[[#This Row],[E Code]]&\"V00\"","v":"=<EA512V00"}]
["POOLED PLASMA","Cryo Reduced, Pathogen Reduced","EA510","POOLED PLASMA|CPD/XX/<=-18C|Cryo reduced|Psoralen-treated|From 2 donors",{"$f":"Table1[[#This Row],[E Code]]&\"V00\"","v":"EA510V00"},{"$f":"CODE128(Table1[[#This Row],[Barcode Value1]])","v":"Ì=<EA510V00MÎ"},{"$f":"\"=<\"&Table1[[#This Row],[E Code]]&\"V00\"","v":"=<EA510V00"}]
["POOLED PLASMA","Pathogen Reduced","E9004","POOLED PLASMA|CP2D/XX/<=-18C|Frozen <=24h|Psoralen-treated|From 2 donors",{"$f":"Table1[[#This Row],[E Code]]&\"V00\"","v":"E9004V00"},{"$f":"CODE128(Table1[[#This Row],[Barcode Value1]])","v":"Ì=<EÇz$ÈV00?Î"},{"$f":"\"=<\"&Table1[[#This Row],[E Code]]&\"V00\"","v":"=<E9004V00"}]
["POOLED PLASMA","Pathogen Reduced","E9003","POOLED PLASMA|CP2D/XX/<=-18C|Frozen <=24h|Psoralen-treated|From 3 donors",{"$f":"Table1[[#This Row],[E Code]]&\"V00\"","v":"E9003V00"},{"$f":"CODE128(Table1[[#This Row],[Barcode Value1]])","v":"Ì=<EÇz#ÈV009Î"},{"$f":"\"=<\"&Table1[[#This Row],[E Code]]&\"V00\"","v":"=<E9003V00"}]
["POOLED PLASMA","Pathogen Reduced","E9007","POOLED PLASMA|CPD/XX/<=-18C|Frozen <=24h|Psoralen-treated|From 2 donors",{"$f":"Table1[[#This Row],[E Code]]&\"V00\"","v":"E9007V00"},{"$f":"CODE128(Table1[[#This Row],[Barcode Value1]])","v":"Ì=<EÇz'ÈV00QÎ"},{"$f":"\"=<\"&Table1[[#This Row],[E Code]]&\"V00\"","v":"=<E9007V00"}]
["POOLED PLASMA","Pathogen Reduced","E9006","POOLED PLASMA|CPD/XX/<=-18C|Frozen <=24h|Psoralen-treated|From 3 donors",{"$f":"Table1[[#This Row],[E Code]]&\"V00\"","v":"E9006V00"},{"$f":"CODE128(Table1[[#This Row],[Barcode Value1]])","v":"Ì=<EÇz&ÈV00KÎ"},{"$f":"\"=<\"&Table1[[#This Row],[E Code]]&\"V00\"","v":"=<E9006V00"}]
["POOLED PLASMA","Pathogen Reduced, 1st Container","E9004","POOLED PLASMA|CP2D/XX/<=-18C|Frozen <=24h|Psoralen-treated|From 2 donors",{"$f":"Table1[[#This Row],[E Code]]&\"A00\"","v":"E9004A00"},{"$f":"CODE128(Table1[[#This Row],[Barcode Value1]])","v":"Ì=<EÇz$ÈV00?Î"},{"$f":"\"=<\"&Table1[[#This Row],[E Code]]&\"V00\"","v":"=<E9004V00"}]
["POOLED PLASMA","Pathogen Reduced, 1st Container","E9003","POOLED PLASMA|CP2D/XX/<=-18C|Frozen <=24h|Psoralen-treated|From 3 donors",{"$f":"Table1[[#This Row],[E Code]]&\"A00\"","v":"E9003A00"},{"$f":"CODE128(Table1[[#This Row],[Barcode Value1]])","v":"Ì=<EÇz#ÈV009Î"},{"$f":"\"=<\"&Table1[[#This Row],[E Code]]&\"V00\"","v":"=<E9003V00"}]
["POOLED PLASMA","Pathogen Reduced, 2nd Container","E9004","POOLED PLASMA|CP2D/XX/<=-18C|Frozen <=24h|Psoralen-treated|From 2 donors",{"$f":"Table1[[#This Row],[E Code]]&\"B00\"","v":"E9004B00"},{"$f":"CODE128(Table1[[#This Row],[Barcode Value1]])","v":"Ì=<EÇz$ÈV00?Î"},{"$f":"\"=<\"&Table1[[#This Row],[E Code]]&\"V00\"","v":"=<E9004V00"}]
["POOLED PLASMA","Pathogen Reduced, 2nd Container","E9003","POOLED PLASMA|CP2D/XX/<=-18C|Frozen <=24h|Psoralen-treated|From 3 donors",{"$f":"Table1[[#This Row],[E Code]]&\"B00\"","v":"E9003B00"},{"$f":"CODE128(Table1[[#This Row],[Barcode Value1]])","v":"Ì=<EÇz#ÈV009Î"},{"$f":"\"=<\"&Table1[[#This Row],[E Code]]&\"V00\"","v":"=<E9003V00"}]
["POOLED PLASMA","Pathogen Reduced, 3rd Container","E9004","POOLED PLASMA|CP2D/XX/<=-18C|Frozen <=24h|Psoralen-treated|From 2 donors",{"$f":"Table1[[#This Row],[E Code]]&\"C00\"","v":"E9004C00"},{"$f":"CODE128(Table1[[#This Row],[Barcode Value1]])","v":"Ì=<EÇz$ÈV00?Î"},{"$f":"\"=<\"&Table1[[#This Row],[E Code]]&\"V00\"","v":"=<E9004V00"}]
["POOLED PLASMA","Pathogen Reduced, 3rd Container","E9003","POOLED PLASMA|CP2D/XX/<=-18C|Frozen <=24h|Psoralen-treated|From 3 donors",{"$f":"Table1[[#This Row],[E Code]]&\"C00\"","v":"E9003C00"},{"$f":"CODE128(Table1[[#This Row],[Barcode Value1]])","v":"Ì=<EÇz#ÈV009Î"},{"$f":"\"=<\"&Table1[[#This Row],[E Code]]&\"V00\"","v":"=<E9003V00"}]
["POOLED PLATELETS","Leukoreduced","E7150","POOLED PLATELETS|CP2D/XX/20-24C|ResLeu:<5E6|5 units|Bacterial monitoring",{"$f":"Table1[[#This Row],[E Code]]&\"V00\"","v":"E7150V00"},{"$f":"CODE128(Table1[[#This Row],[Barcode Value1]])","v":"Ì=<EÇgRÈV00&Î"},{"$f":"\"=<\"&Table1[[#This Row],[E Code]]&\"V00\"","v":"=<E7150V00"}]
["POOLED PLATELETS","Leukoreduced","EA964","POOLED PLATELETS|CP2D/XX/20-24C|ResLeu:<5E6|5 units|Bacterial monitoring >=24h",{"$f":"Table1[[#This Row],[E Code]]&\"V00\"","v":"EA964V00"},{"$f":"CODE128(Table1[[#This Row],[Barcode Value1]])","v":"Ì=<EA964V004Î"},{"$f":"\"=<\"&Table1[[#This Row],[E Code]]&\"V00\"","v":"=<EA964V00"}]
["POOLED PLATELETS","Leukoreduced","EA966","POOLED PLATELETS|CP2D/XX/20-24C|ResLeu:<5E6|5 units|Bacterial monitoring >=36h",{"$f":"Table1[[#This Row],[E Code]]&\"V00\"","v":"EA966V00"},{"$f":"CODE128(Table1[[#This Row],[Barcode Value1]])","v":"Ì=<EA966V00BÎ"},{"$f":"\"=<\"&Table1[[#This Row],[E Code]]&\"V00\"","v":"=<EA966V00"}]
["POOLED PLATELETS","Leukoreduced","E5710","POOLED PLATELETS|CP2D/XX/20-24C|ResLeu:<5E6|Bacterial monitoring",{"$f":"Table1[[#This Row],[E Code]]&\"V00\"","v":"E5710V00"},{"$f":"CODE128(Table1[[#This Row],[Barcode Value1]])","v":"Ì=<EÇY*ÈV00%Î"},{"$f":"\"=<\"&Table1[[#This Row],[E Code]]&\"V00\"","v":"=<E5710V00"}]
["POOLED PLATELETS","Leukoreduced","EA006","POOLED PLATELETS|CP2D/XX/20-24C|ResLeu:<5E6|Bacterial monitoring >=24h",{"$f":"Table1[[#This Row],[E Code]]&\"V00\"","v":"EA006V00"},{"$f":"CODE128(Table1[[#This Row],[Barcode Value1]])","v":"Ì=<EA006V00XÎ"},{"$f":"\"=<\"&Table1[[#This Row],[E Code]]&\"V00\"","v":"=<EA006V00"}]
["POOLED PLATELETS","Leukoreduced","EA047","POOLED PLATELETS|CP2D/XX/20-24C|ResLeu:<5E6|Bacterial monitoring >=36h",{"$f":"Table1[[#This Row],[E Code]]&\"V00\"","v":"EA047V00"},{"$f":"CODE128(Table1[[#This Row],[Barcode Value1]])","v":"Ì=<EA047V00wÎ"},{"$f":"\"=<\"&Table1[[#This Row],[E Code]]&\"V00\"","v":"=<EA047V00"}]
["POOLED PLATELETS","Leukoreduced","EA790","POOLED PLATELETS|CPD/XX/20-24C|ResLeu:<5E6|5 units|Bacterial monitoring",{"$f":"Table1[[#This Row],[E Code]]&\"V00\"","v":"EA790V00"},{"$f":"CODE128(Table1[[#This Row],[Barcode Value1]])","v":"Ì=<EA790V00ÂÎ"},{"$f":"\"=<\"&Table1[[#This Row],[E Code]]&\"V00\"","v":"=<EA790V00"}]
["POOLED PLATELETS","Leukoreduced","EA005","POOLED PLATELETS|CPD/XX/20-24C|ResLeu:<5E6|5 units|Bacterial monitoring >=24h",{"$f":"Table1[[#This Row],[E Code]]&\"V00\"","v":"EA005V00"},{"$f":"CODE128(Table1[[#This Row],[Barcode Value1]])","v":"Ì=<EA005V00QÎ"},{"$f":"\"=<\"&Table1[[#This Row],[E Code]]&\"V00\"","v":"=<EA005V00"}]
["POOLED PLATELETS","Leukoreduced","EA046","POOLED PLATELETS|CPD/XX/20-24C|ResLeu:<5E6|5 units|Bacterial monitoring >=36h",{"$f":"Table1[[#This Row],[E Code]]&\"V00\"","v":"EA046V00"},{"$f":"CODE128(Table1[[#This Row],[Barcode Value1]])","v":"Ì=<EA046V00pÎ"},{"$f":"\"=<\"&Table1[[#This Row],[E Code]]&\"V00\"","v":"=<EA046V00"}]
["POOLED PLATELETS","Leukoreduced","E6338","POOLED PLATELETS|CPD/XX/20-24C|ResLeu:<5E6|Bacterial monitoring",{"$f":"Table1[[#This Row],[E Code]]&\"V00\"","v":"E6338V00"},{"$f":"CODE128(Table1[[#This Row],[Barcode Value1]])","v":"Ì=<EÇ_FÈV00ÈÎ"},{"$f":"\"=<\"&Table1[[#This Row],[E Code]]&\"V00\"","v":"=<E6338V00"}]
["POOLED PLATELETS","Leukoreduced","EA004","POOLED PLATELETS|CPD/XX/20-24C|ResLeu:<5E6|Bacterial monitoring >=24h",{"$f":"Table1[[#This Row],[E Code]]&\"V00\"","v":"EA004V00"},{"$f":"CODE128(Table1[[#This Row],[Barcode Value1]])","v":"Ì=<EA004V00JÎ"},{"$f":"\"=<\"&Table1[[#This Row],[E Code]]&\"V00\"","v":"=<EA004V00"}]
["POOLED PLATELETS","Leukoreduced","EA045","POOLED PLATELETS|CPD/XX/20-24C|ResLeu:<5E6|Bacterial monitoring >=36h",{"$f":"Table1[[#This Row],[E Code]]&\"V00\"","v":"EA045V00"},{"$f":"CODE128(Table1[[#This Row],[Barcode Value1]])","v":"Ì=<EA045V00iÎ"},{"$f":"\"=<\"&Table1[[#This Row],[E Code]]&\"V00\"","v":"=<EA045V00"}]
["POOLED PLATELETS","Leukoreduced, Irradiated","EB024","POOLED PLATELETS|CP2D/XX/20-24C|Irradiated|ResLeu:<5E6|5 units|Bacterial monitoring",{"$f":"Table1[[#This Row],[E Code]]&\"V00\"","v":"EB024V00"},{"$f":"CODE128(Table1[[#This Row],[Barcode Value1]])","v":"Ì=<EB024V00ZÎ"},{"$f":"\"=<\"&Table1[[#This Row],[E Code]]&\"V00\"","v":"=<EB024V00"}]
["POOLED PLATELETS","Leukoreduced, Irradiated","EA965","POOLED PLATELETS|CP2D/XX/20-24C|Irradiated|ResLeu:<5E6|5 units|Bacterial monitoring >=24h",{"$f":"Table1[[#This Row],[E Code]]&\"V00\"","v":"EA965V00"},{"$f":"CODE128(Table1[[#This Row],[Barcode Value1]])","v":"Ì=<EA965V00;Î"},{"$f":"\"=<\"&Table1[[#This Row],[E Code]]&\"V00\"","v":"=<EA965V00"}]
["POOLED PLATELETS","Leukoreduced, Irradiated","EA967","POOLED PLATELETS|CP2D/XX/20-24C|Irradiated|ResLeu:<5E6|5 units|Bacterial monitoring >=36h",{"$f":"Table1[[#This Row],[E Code]]&\"V00\"","v":"EA967V00"},{"$f":"CODE128(Table1[[#This Row],[Barcode Value1]])","v":"Ì=<EA967V00IÎ"},{"$f":"\"=<\"&Table1[[#This Row],[E Code]]&\"V00\"","v":"=<EA967V00"}]
["POOLED PLATELETS","Leukoreduced, Irradiated","E5709","POOLED PLATELETS|CP2D/XX/20-24C|Irradiated|ResLeu:<5E6|Bacterial monitoring",{"$f":"Table1[[#This Row],[E Code]]&\"V00\"","v":"E5709V00"},{"$f":"CODE128(Table1[[#This Row],[Barcode Value1]])","v":"Ì=<EÇY)ÈV00ÊÎ"},{"$f":"\"=<\"&Table1[[#This Row],[E Code]]&\"V00\"","v":"=<E5709V00"}]
["POOLED PLATELETS","Leukoreduced, Irradiated","EA408","POOLED PLATELETS|CP2D/XX/20-24C|Irradiated|ResLeu:<5E6|Bacterial monitoring >=24h",{"$f":"Table1[[#This Row],[E Code]]&\"V00\"","v":"EA408V00"},{"$f":"CODE128(Table1[[#This Row],[Barcode Value1]])","v":"Ì=<EA408V00zÎ"},{"$f":"\"=<\"&Table1[[#This Row],[E Code]]&\"V00\"","v":"=<EA408V00"}]
["POOLED PLATELETS","Leukoreduced, Irradiated","EA409","POOLED PLATELETS|CP2D/XX/20-24C|Irradiated|ResLeu:<5E6|Bacterial monitoring >=36h",{"$f":"Table1[[#This Row],[E Code]]&\"V00\"","v":"EA409V00"},{"$f":"CODE128(Table1[[#This Row],[Barcode Value1]])","v":"Ì=<EA409V00ÅÎ"},{"$f":"\"=<\"&Table1[[#This Row],[E Code]]&\"V00\"","v":"=<EA409V00"}]
["POOLED PLATELETS","Leukoreduced, Irradiated","EA793","POOLED PLATELETS|CPD/XX/20-24C|Irradiated|ResLeu:<5E6|5 units|Bacterial monitoring",{"$f":"Table1[[#This Row],[E Code]]&\"V00\"","v":"EA793V00"},{"$f":"CODE128(Table1[[#This Row],[Barcode Value1]])","v":"Ì=<EA793V005Î"},{"$f":"\"=<\"&Table1[[#This Row],[E Code]]&\"V00\"","v":"=<EA793V00"}]
["POOLED PLATELETS","Leukoreduced, Irradiated","EA552","POOLED PLATELETS|CPD/XX/20-24C|Irradiated|ResLeu:<5E6|5 units|Bacterial monitoring >=24h",{"$f":"Table1[[#This Row],[E Code]]&\"V00\"","v":"EA552V00"},{"$f":"CODE128(Table1[[#This Row],[Barcode Value1]])","v":"Ì=<EA552V00sÎ"},{"$f":"\"=<\"&Table1[[#This Row],[E Code]]&\"V00\"","v":"=<EA552V00"}]
["POOLED PLATELETS","Leukoreduced, Irradiated","EA554","POOLED PLATELETS|CPD/XX/20-24C|Irradiated|ResLeu:<5E6|5 units|Bacterial monitoring >=36h",{"$f":"Table1[[#This Row],[E Code]]&\"V00\"","v":"EA554V00"},{"$f":"CODE128(Table1[[#This Row],[Barcode Value1]])","v":"Ì=<EA554V00ÅÎ"},{"$f":"\"=<\"&Table1[[#This Row],[E Code]]&\"V00\"","v":"=<EA554V00"}]
["POOLED PLATELETS","Leukoreduced, Irradiated","E6339","POOLED PLATELETS|CPD/XX/20-24C|Irradiated|ResLeu:<5E6|Bacterial monitoring",{"$f":"Table1[[#This Row],[E Code]]&\"V00\"","v":"E6339V00"},{"$f":"CODE128(Table1[[#This Row],[Barcode Value1]])","v":"Ì=<EÇ_GÈV00#Î"},{"$f":"\"=<\"&Table1[[#This Row],[E Code]]&\"V00\"","v":"=<E6339V00"}]
["POOLED PLATELETS","Leukoreduced, Irradiated","EA551","POOLED PLATELETS|CPD/XX/20-24C|Irradiated|ResLeu:<5E6|Bacterial monitoring >=24h",{"$f":"Table1[[#This Row],[E Code]]&\"V00\"","v":"EA551V00"},{"$f":"CODE128(Table1[[#This Row],[Barcode Value1]])","v":"Ì=<EA551V00lÎ"},{"$f":"\"=<\"&Table1[[#This Row],[E Code]]&\"V00\"","v":"=<EA551V00"}]
["POOLED PLATELETS","Leukoreduced, Irradiated","EA553","POOLED PLATELETS|CPD/XX/20-24C|Irradiated|ResLeu:<5E6|Bacterial monitoring >=36h",{"$f":"Table1[[#This Row],[E Code]]&\"V00\"","v":"EA553V00"},{"$f":"CODE128(Table1[[#This Row],[Barcode Value1]])","v":"Ì=<EA553V00zÎ"},{"$f":"\"=<\"&Table1[[#This Row],[E Code]]&\"V00\"","v":"=<EA553V00"}]
["RED BLOOD CELLS","Irradiated","E0378","RED BLOOD CELLS|CP2D>AS3/500mL/refg|Irradiated",{"$f":"Table1[[#This Row],[E Code]]&\"V00\"","v":"E0378V00"},{"$f":"CODE128(Table1[[#This Row],[Barcode Value1]])","v":"Ì=<EÇ#nÈV00HÎ"},{"$f":"\"=<\"&Table1[[#This Row],[E Code]]&\"V00\"","v":"=<E0378V00"}]
["RED BLOOD CELLS","Irradiated","E0331","RED BLOOD CELLS|CPD>AS1/500mL/refg|Irradiated",{"$f":"Table1[[#This Row],[E Code]]&\"V00\"","v":"E0331V00"},{"$f":"CODE128(Table1[[#This Row],[Barcode Value1]])","v":"Ì=<EÇ#?ÈV00cÎ"},{"$f":"\"=<\"&Table1[[#This Row],[E Code]]&\"V00\"","v":"=<E0331V00"}]
["RED BLOOD CELLS","Irradiated","E0419","RED BLOOD CELLS|CPD>AS5/500mL/refg|Irradiated",{"$f":"Table1[[#This Row],[E Code]]&\"V00\"","v":"E0419V00"},{"$f":"CODE128(Table1[[#This Row],[Barcode Value1]])","v":"Ì=<EÇ$3ÈV00ÂÎ"},{"$f":"\"=<\"&Table1[[#This Row],[E Code]]&\"V00\"","v":"=<E0419V00"}]
["RED BLOOD CELLS","Irradiated","E0223","RED BLOOD CELLS|CPDA-1/500mL/refg|Irradiated",{"$f":"Table1[[#This Row],[E Code]]&\"V00\"","v":"E0223V00"},{"$f":"CODE128(Table1[[#This Row],[Barcode Value1]])","v":"Ì=<EÇ\"7ÈV00.Î"},{"$f":"\"=<\"&Table1[[#This Row],[E Code]]&\"V00\"","v":"=<E0223V00"}]
["RED BLOOD CELLS","Leukoreduced","E0276","RED BLOOD CELLS|CP2D/500mL/refg|ResLeu:<5E6",{"$f":"Table1[[#This Row],[E Code]]&\"V00\"","v":"E0276V00"},{"$f":"CODE128(Table1[[#This Row],[Barcode Value1]])","v":"Ì=<EÇ\"lÈV007Î"},{"$f":"\"=<\"&Table1[[#This Row],[E Code]]&\"V00\"","v":"=<E0276V00"}]
["RED BLOOD CELLS","Leukoreduced","E0382","RED BLOOD CELLS|CP2D>AS3/500mL/refg|ResLeu:<5E6",{"$f":"Table1[[#This Row],[E Code]]&\"V00\"","v":"E0382V00"},{"$f":"CODE128(Table1[[#This Row],[Barcode Value1]])","v":"Ì=<EÇ#rÈV00`Î"},{"$f":"\"=<\"&Table1[[#This Row],[E Code]]&\"V00\"","v":"=<E0382V00"}]
["RED BLOOD CELLS","Leukoreduced","E0181","RED BLOOD CELLS|CPD/500mL/refg|ResLeu:<5E6",{"$f":"Table1[[#This Row],[E Code]]&\"V00\"","v":"E0181V00"},{"$f":"CODE128(Table1[[#This Row],[Barcode Value1]])","v":"Ì=<EÇ!qÈV00PÎ"},{"$f":"\"=<\"&Table1[[#This Row],[E Code]]&\"V00\"","v":"=<E0181V00"}]
["RED BLOOD CELLS","Leukoreduced","E0336","RED BLOOD CELLS|CPD>AS1/500mL/refg|ResLeu:<5E6",{"$f":"Table1[[#This Row],[E Code]]&\"V00\"","v":"E0336V00"},{"$f":"CODE128(Table1[[#This Row],[Barcode Value1]])","v":"Ì=<EÇ#DÈV00ÅÎ"},{"$f":"\"=<\"&Table1[[#This Row],[E Code]]&\"V00\"","v":"=<E0336V00"}]
["RED BLOOD CELLS","Leukoreduced","E0424","RED BLOOD CELLS|CPD>AS5/500mL/refg|ResLeu:<5E6",{"$f":"Table1[[#This Row],[E Code]]&\"V00\"","v":"E0424V00"},{"$f":"CODE128(Table1[[#This Row],[Barcode Value1]])","v":"Ì=<EÇ$8ÈV00>Î"},{"$f":"\"=<\"&Table1[[#This Row],[E Code]]&\"V00\"","v":"=<E0424V00"}]
["RED BLOOD CELLS","Leukoreduced","E0226","RED BLOOD CELLS|CPDA-1/500mL/refg|ResLeu:<5E6",{"$f":"Table1[[#This Row],[E Code]]&\"V00\"","v":"E0226V00"},{"$f":"CODE128(Table1[[#This Row],[Barcode Value1]])","v":"Ì=<EÇ\":ÈV00@Î"},{"$f":"\"=<\"&Table1[[#This Row],[E Code]]&\"V00\"","v":"=<E0226V00"}]
["RED BLOOD CELLS","Leukoreduced, Irradiated","E0379","RED BLOOD CELLS|CP2D>AS3/500mL/refg|Irradiated|ResLeu:<5E6",{"$f":"Table1[[#This Row],[E Code]]&\"V00\"","v":"E0379V00"},{"$f":"CODE128(Table1[[#This Row],[Barcode Value1]])","v":"Ì=<EÇ#oÈV00NÎ"},{"$f":"\"=<\"&Table1[[#This Row],[E Code]]&\"V00\"","v":"=<E0379V00"}]
["RED BLOOD CELLS","Leukoreduced, Irradiated","E0332","RED BLOOD CELLS|CPD>AS1/500mL/refg|Irradiated|ResLeu:<5E6",{"$f":"Table1[[#This Row],[E Code]]&\"V00\"","v":"E0332V00"},{"$f":"CODE128(Table1[[#This Row],[Barcode Value1]])","v":"Ì=<EÇ#@ÈV00iÎ"},{"$f":"\"=<\"&Table1[[#This Row],[E Code]]&\"V00\"","v":"=<E0332V00"}]
["RED BLOOD CELLS","Leukoreduced, Irradiated","E0420","RED BLOOD CELLS|CPD>AS5/500mL/refg|Irradiated|ResLeu:<5E6",{"$f":"Table1[[#This Row],[E Code]]&\"V00\"","v":"E0420V00"},{"$f":"CODE128(Table1[[#This Row],[Barcode Value1]])","v":"Ì=<EÇ$4ÈV00&Î"},{"$f":"\"=<\"&Table1[[#This Row],[E Code]]&\"V00\"","v":"=<E0420V00"}]
["RED BLOOD CELLS","Leukoreduced, Irradiated","E0224","RED BLOOD CELLS|CPDA-1/500mL/refg|Irradiated|ResLeu:<5E6",{"$f":"Table1[[#This Row],[E Code]]&\"V00\"","v":"E0224V00"},{"$f":"CODE128(Table1[[#This Row],[Barcode Value1]])","v":"Ì=<EÇ\"8ÈV004Î"},{"$f":"\"=<\"&Table1[[#This Row],[E Code]]&\"V00\"","v":"=<E0224V00"}]
["RED BLOOD CELLS","Leukoreduced, Irradiated, Low Volume","E5558","RED BLOOD CELLS|CP2D/XX/refg|Irradiated|ResLeu:<5E6|LowVol:anticoag not adj",{"$f":"Table1[[#This Row],[E Code]]&\"V00\"","v":"E5558V00"},{"$f":"CODE128(Table1[[#This Row],[Barcode Value1]])","v":"Ì=<EÇWZÈV00mÎ"},{"$f":"\"=<\"&Table1[[#This Row],[E Code]]&\"V00\"","v":"=<E5558V00"}]
["RED BLOOD CELLS","Leukoreduced, Irradiated, Low Volume","E5124","RED BLOOD CELLS|CP2D>AS3/XX/refg|Irradiated|ResLeu:<5E6|LowVol:anticoag not adj",{"$f":"Table1[[#This Row],[E Code]]&\"V00\"","v":"E5124V00"},{"$f":"CODE128(Table1[[#This Row],[Barcode Value1]])","v":"Ì=<EÇS8ÈV00[Î"},{"$f":"\"=<\"&Table1[[#This Row],[E Code]]&\"V00\"","v":"=<E5124V00"}]
["RED BLOOD CELLS","Leukoreduced, Irradiated, Low Volume","E5252","RED BLOOD CELLS|CPD/XX/refg|Irradiated|ResLeu:<5E6|LowVol:anticoag not adj",{"$f":"Table1[[#This Row],[E Code]]&\"V00\"","v":"E5252V00"},{"$f":"CODE128(Table1[[#This Row],[Barcode Value1]])","v":"Ì=<EÇTTÈV00:Î"},{"$f":"\"=<\"&Table1[[#This Row],[E Code]]&\"V00\"","v":"=<E5252V00"}]
["RED BLOOD CELLS","Leukoreduced, Irradiated, Low Volume","E5122","RED BLOOD CELLS|CPD>AS1/XX/refg|Irradiated|ResLeu:<5E6|LowVol:anticoag not adj",{"$f":"Table1[[#This Row],[E Code]]&\"V00\"","v":"E5122V00"},{"$f":"CODE128(Table1[[#This Row],[Barcode Value1]])","v":"Ì=<EÇS6ÈV00OÎ"},{"$f":"\"=<\"&Table1[[#This Row],[E Code]]&\"V00\"","v":"=<E5122V00"}]
["RED BLOOD CELLS","Leukoreduced, Irradiated, Low Volume","E5126","RED BLOOD CELLS|CPD>AS5/XX/refg|Irradiated|ResLeu:<5E6|LowVol:anticoag not adj",{"$f":"Table1[[#This Row],[E Code]]&\"V00\"","v":"E5126V00"},{"$f":"CODE128(Table1[[#This Row],[Barcode Value1]])","v":"Ì=<EÇS:ÈV00gÎ"},{"$f":"\"=<\"&Table1[[#This Row],[E Code]]&\"V00\"","v":"=<E5126V00"}]
["RED BLOOD CELLS","Leukoreduced, Irradiated, Low Volume","E5376","RED BLOOD CELLS|CPDA-1/XX/refg|Irradiated|ResLeu:<5E6|LowVol:anticoag not adj",{"$f":"Table1[[#This Row],[E Code]]&\"V00\"","v":"E5376V00"},{"$f":"CODE128(Table1[[#This Row],[Barcode Value1]])","v":"Ì=<EÇUlÈV00hÎ"},{"$f":"\"=<\"&Table1[[#This Row],[E Code]]&\"V00\"","v":"=<E5376V00"}]
["RED BLOOD CELLS","Leukoreduced, Low Volume","E5611","RED BLOOD CELLS|CP2D/XX/refg|ResLeu:<5E6|LowVol:anticoag not adj",{"$f":"Table1[[#This Row],[E Code]]&\"V00\"","v":"E5611V00"},{"$f":"CODE128(Table1[[#This Row],[Barcode Value1]])","v":"Ì=<EÇX+ÈV00&Î"},{"$f":"\"=<\"&Table1[[#This Row],[E Code]]&\"V00\"","v":"=<E5611V00"}]
["RED BLOOD CELLS","Leukoreduced, Low Volume","E5242","RED BLOOD CELLS|CP2D>AS3/XX/refg|ResLeu:<5E6|LowVol:anticoag not adj",{"$f":"Table1[[#This Row],[E Code]]&\"V00\"","v":"E5242V00"},{"$f":"CODE128(Table1[[#This Row],[Barcode Value1]])","v":"Ì=<EÇTJÈV00eÎ"},{"$f":"\"=<\"&Table1[[#This Row],[E Code]]&\"V00\"","v":"=<E5242V00"}]
["RED BLOOD CELLS","Leukoreduced, Low Volume","E5240","RED BLOOD CELLS|CPD/XX/refg|ResLeu:<5E6|LowVol:anticoag not adj",{"$f":"Table1[[#This Row],[E Code]]&\"V00\"","v":"E5240V00"},{"$f":"CODE128(Table1[[#This Row],[Barcode Value1]])","v":"Ì=<EÇTHÈV00YÎ"},{"$f":"\"=<\"&Table1[[#This Row],[E Code]]&\"V00\"","v":"=<E5240V00"}]
["RED BLOOD CELLS","Leukoreduced, Low Volume","E5157","RED BLOOD CELLS|CPD>AS1/XX/refg|ResLeu:<5E6|LowVol:anticoag not adj",{"$f":"Table1[[#This Row],[E Code]]&\"V00\"","v":"E5157V00"},{"$f":"CODE128(Table1[[#This Row],[Barcode Value1]])","v":"Ì=<EÇSYÈV00SÎ"},{"$f":"\"=<\"&Table1[[#This Row],[E Code]]&\"V00\"","v":"=<E5157V00"}]
["RED BLOOD CELLS","Leukoreduced, Low Volume","E5244","RED BLOOD CELLS|CPD>AS5/XX/refg|ResLeu:<5E6|LowVol:anticoag not adj",{"$f":"Table1[[#This Row],[E Code]]&\"V00\"","v":"E5244V00"},{"$f":"CODE128(Table1[[#This Row],[Barcode Value1]])","v":"Ì=<EÇTLÈV00qÎ"},{"$f":"\"=<\"&Table1[[#This Row],[E Code]]&\"V00\"","v":"=<E5244V00"}]
["RED BLOOD CELLS","Leukoreduced, Low Volume","E5155","RED BLOOD CELLS|CPDA-1/XX/refg|ResLeu:<5E6|LowVol:anticoag not adj",{"$f":"Table1[[#This Row],[E Code]]&\"V00\"","v":"E5155V00"},{"$f":"CODE128(Table1[[#This Row],[Barcode Value1]])","v":"Ì=<EÇSWÈV00GÎ"},{"$f":"\"=<\"&Table1[[#This Row],[E Code]]&\"V00\"","v":"=<E5155V00"}]
["RED BLOOD CELLS","N/A","E0262","RED BLOOD CELLS|CP2D/500mL/refg",{"$f":"Table1[[#This Row],[E Code]]&\"V00\"","v":"E0262V00"},{"$f":"CODE128(Table1[[#This Row],[Barcode Value1]])","v":"Ì=<EÇ\"^ÈV00JÎ"},{"$f":"\"=<\"&Table1[[#This Row],[E Code]]&\"V00\"","v":"=<E0262V00"}]
["RED BLOOD CELLS","N/A","E0366","RED BLOOD CELLS|CP2D>AS3/500mL/refg",{"$f":"Table1[[#This Row],[E Code]]&\"V00\"","v":"E0366V00"},{"$f":"CODE128(Table1[[#This Row],[Barcode Value1]])","v":"Ì=<EÇ#bÈV00gÎ"},{"$f":"\"=<\"&Table1[[#This Row],[E Code]]&\"V00\"","v":"=<E0366V00"}]
["RED BLOOD CELLS","N/A","E0167","RED BLOOD CELLS|CPD/500mL/refg",{"$f":"Table1[[#This Row],[E Code]]&\"V00\"","v":"E0167V00"},{"$f":"CODE128(Table1[[#This Row],[Barcode Value1]])","v":"Ì=<EÇ!cÈV00cÎ"},{"$f":"\"=<\"&Table1[[#This Row],[E Code]]&\"V00\"","v":"=<E0167V00"}]
["RED BLOOD CELLS","N/A","E0316","RED BLOOD CELLS|CPD>AS1/500mL/refg",{"$f":"Table1[[#This Row],[E Code]]&\"V00\"","v":"E0316V00"},{"$f":"CODE128(Table1[[#This Row],[Barcode Value1]])","v":"Ì=<EÇ#0ÈV00pÎ"},{"$f":"\"=<\"&Table1[[#This Row],[E Code]]&\"V00\"","v":"=<E0316V00"}]
["RED BLOOD CELLS","N/A","E0404","RED BLOOD CELLS|CPD>AS5/500mL/refg",{"$f":"Table1[[#This Row],[E Code]]&\"V00\"","v":"E0404V00"},{"$f":"CODE128(Table1[[#This Row],[Barcode Value1]])","v":"Ì=<EÇ$$ÈV00-Î"},{"$f":"\"=<\"&Table1[[#This Row],[E Code]]&\"V00\"","v":"=<E0404V00"}]
["RED BLOOD CELLS","N/A","E0212","RED BLOOD CELLS|CPDA-1/500mL/refg",{"$f":"Table1[[#This Row],[E Code]]&\"V00\"","v":"E0212V00"},{"$f":"CODE128(Table1[[#This Row],[Barcode Value1]])","v":"Ì=<EÇ\",ÈV00SÎ"},{"$f":"\"=<\"&Table1[[#This Row],[E Code]]&\"V00\"","v":"=<E0212V00"}]
["Thawed Apheresis CONVALESCENT PLASMA","N/A","E9752","Thawed Apheresis CONVALESCENT PLASMA|ACD-A/XX/refg|COVID-19",{"$f":"Table1[[#This Row],[E Code]]&\"V00\"","v":"E9752V00"},{"$f":"CODE128(Table1[[#This Row],[Barcode Value1]])","v":"Ì=<EÇÅTÈV00MÎ"},{"$f":"\"=<\"&Table1[[#This Row],[E Code]]&\"V00\"","v":"=<E9752V00"}]
["Thawed Apheresis FRESH FROZEN PLASMA","N/A","E1237","Thawed Apheresis FRESH FROZEN PLASMA|ACD-A/XX/refg",{"$f":"Table1[[#This Row],[E Code]]&\"V00\"","v":"E1237V00"},{"$f":"CODE128(Table1[[#This Row],[Barcode Value1]])","v":"Ì=<EÇ,EÈV00MÎ"},{"$f":"\"=<\"&Table1[[#This Row],[E Code]]&\"V00\"","v":"=<E1237V00"}]
["Thawed Apheresis FRESH FROZEN PLASMA","N/A","E4713","Thawed Apheresis FRESH FROZEN PLASMA|ACD-A/XX/refg|1st container",{"$f":"Table1[[#This Row],[E Code]]&\"V00\"","v":"E4713V00"},{"$f":"CODE128(Table1[[#This Row],[Barcode Value1]])","v":"Ì=<EÇO-ÈV00lÎ"},{"$f":"\"=<\"&Table1[[#This Row],[E Code]]&\"V00\"","v":"=<E4713V00"}]
["Thawed Apheresis FRESH FROZEN PLASMA","N/A","E4717","Thawed Apheresis FRESH FROZEN PLASMA|ACD-A/XX/refg|2nd container",{"$f":"Table1[[#This Row],[E Code]]&\"V00\"","v":"E4717V00"},{"$f":"CODE128(Table1[[#This Row],[Barcode Value1]])","v":"Ì=<EÇO1ÈV00ÈÎ"},{"$f":"\"=<\"&Table1[[#This Row],[E Code]]&\"V00\"","v":"=<E4717V00"}]
["Thawed Apheresis FRESH FROZEN PLASMA","N/A","E4721","Thawed Apheresis FRESH FROZEN PLASMA|ACD-A/XX/refg|3rd container",{"$f":"Table1[[#This Row],[E Code]]&\"V00\"","v":"E4721V00"},{"$f":"CODE128(Table1[[#This Row],[Barcode Value1]])","v":"Ì=<EÇO5ÈV005Î"},{"$f":"\"=<\"&Table1[[#This Row],[E Code]]&\"V00\"","v":"=<E4721V00"}]
["Thawed Apheresis FRESH FROZEN PLASMA","N/A","E4725","Thawed Apheresis FRESH FROZEN PLASMA|ACD-A/XX/refg|4th container",{"$f":"Table1[[#This Row],[E Code]]&\"V00\"","v":"E4725V00"},{"$f":"CODE128(Table1[[#This Row],[Barcode Value1]])","v":"Ì=<EÇO9ÈV00MÎ"},{"$f":"\"=<\"&Table1[[#This Row],[E Code]]&\"V00\"","v":"=<E4725V00"}]
["Thawed Apheresis PLASMA","N/A","E2284","Thawed Apheresis PLASMA|ACD-A/XX/refg|Frozen <=24h",{"$f":"Table1[[#This Row],[E Code]]&\"V00\"","v":"E2284V00"},{"$f":"CODE128(Table1[[#This Row],[Barcode Value1]])","v":"Ì=<EÇ6tÈV00dÎ"},{"$f":"\"=<\"&Table1[[#This Row],[E Code]]&\"V00\"","v":"=<E2284V00"}]
["Thawed Apheresis PLASMA","N/A","E7759","Thawed Apheresis PLASMA|ACD-A/XX/refg|Frozen <=24h|1st container",{"$f":"Table1[[#This Row],[E Code]]&\"V00\"","v":"E7759V00"},{"$f":"CODE128(Table1[[#This Row],[Barcode Value1]])","v":"Ì=<EÇm[ÈV00zÎ"},{"$f":"\"=<\"&Table1[[#This Row],[E Code]]&\"V00\"","v":"=<E7759V00"}]
["Thawed Apheresis PLASMA","N/A","E7760","Thawed Apheresis PLASMA|ACD-A/XX/refg|Frozen <=24h|2nd container",{"$f":"Table1[[#This Row],[E Code]]&\"V00\"","v":"E7760V00"},{"$f":"CODE128(Table1[[#This Row],[Barcode Value1]])","v":"Ì=<EÇm\\ÈV00ÄÎ"},{"$f":"\"=<\"&Table1[[#This Row],[E Code]]&\"V00\"","v":"=<E7760V00"}]
["Thawed Apheresis PLASMA","N/A","E7761","Thawed Apheresis PLASMA|ACD-A/XX/refg|Frozen <=24h|3rd container",{"$f":"Table1[[#This Row],[E Code]]&\"V00\"","v":"E7761V00"},{"$f":"CODE128(Table1[[#This Row],[Barcode Value1]])","v":"Ì=<EÇm]ÈV00ÊÎ"},{"$f":"\"=<\"&Table1[[#This Row],[E Code]]&\"V00\"","v":"=<E7761V00"}]
["Thawed Apheresis PLASMA","N/A","E7762","Thawed Apheresis PLASMA|ACD-A/XX/refg|Frozen <=24h|4th container",{"$f":"Table1[[#This Row],[E Code]]&\"V00\"","v":"E7762V00"},{"$f":"CODE128(Table1[[#This Row],[Barcode Value1]])","v":"Ì=<EÇm^ÈV00%Î"},{"$f":"\"=<\"&Table1[[#This Row],[E Code]]&\"V00\"","v":"=<E7762V00"}]
["Thawed CONVALESCENT PLASMA","N/A","E9783","Thawed CONVALESCENT PLASMA|NS/XX/refg|COVID-19",{"$f":"Table1[[#This Row],[E Code]]&\"V00\"","v":"E9783V00"},{"$f":"CODE128(Table1[[#This Row],[Barcode Value1]])","v":"Ì=<EÇÅsÈV009Î"},{"$f":"\"=<\"&Table1[[#This Row],[E Code]]&\"V00\"","v":"=<E9783V00"}]
["Thawed CRYOPRECIPITATE","N/A","E3581","Thawed CRYOPRECIPITATE|None/XX/rt",{"$f":"Table1[[#This Row],[E Code]]&\"V00\"","v":"E3581V00"},{"$f":"CODE128(Table1[[#This Row],[Barcode Value1]])","v":"Ì=<EÇCqÈV00,Î"},{"$f":"\"=<\"&Table1[[#This Row],[E Code]]&\"V00\"","v":"=<E3581V00"}]
["Thawed FRESH FROZEN PLASMA","N/A","E0797","Thawed FRESH FROZEN PLASMA|CP2D/XX/refg",{"$f":"Table1[[#This Row],[E Code]]&\"V00\"","v":"E0797V00"},{"$f":"CODE128(Table1[[#This Row],[Barcode Value1]])","v":"Ì=<EÇ'ÅÈV00gÎ"},{"$f":"\"=<\"&Table1[[#This Row],[E Code]]&\"V00\"","v":"=<E0797V00"}]
["Thawed FRESH FROZEN PLASMA","N/A","E0773","Thawed FRESH FROZEN PLASMA|CPD/XX/refg",{"$f":"Table1[[#This Row],[E Code]]&\"V00\"","v":"E0773V00"},{"$f":"CODE128(Table1[[#This Row],[Barcode Value1]])","v":"Ì=<EÇ'iÈV00>Î"},{"$f":"\"=<\"&Table1[[#This Row],[E Code]]&\"V00\"","v":"=<E0773V00"}]
["Thawed FRESH FROZEN PLASMA","N/A","E0785","Thawed FRESH FROZEN PLASMA|CPDA-1/XX/refg",{"$f":"Table1[[#This Row],[E Code]]&\"V00\"","v":"E0785V00"},{"$f":"CODE128(Table1[[#This Row],[Barcode Value1]])","v":"Ì=<EÇ'uÈV00ÊÎ"},{"$f":"\"=<\"&Table1[[#This Row],[E Code]]&\"V00\"","v":"=<E0785V00"}]
["Thawed PLASMA","Cryo Reduced","E2736","Thawed PLASMA|CP2D/XX/refg|Cryo reduced",{"$f":"Table1[[#This Row],[E Code]]&\"V00\"","v":"E2736V00"},{"$f":"CODE128(Table1[[#This Row],[Barcode Value1]])","v":"Ì=<EÇ;DÈV00+Î"},{"$f":"\"=<\"&Table1[[#This Row],[E Code]]&\"V00\"","v":"=<E2736V00"}]
["Thawed PLASMA","Cryo Reduced","E2700","Thawed PLASMA|CPD/XX/refg|Cryo reduced",{"$f":"Table1[[#This Row],[E Code]]&\"V00\"","v":"E2700V00"},{"$f":"CODE128(Table1[[#This Row],[Barcode Value1]])","v":"Ì=<EÇ;ÂÈV00!Î"},{"$f":"\"=<\"&Table1[[#This Row],[E Code]]&\"V00\"","v":"=<E2700V00"}]
["Thawed PLASMA","Cryo Reduced","E2718","Thawed PLASMA|CPDA-1/XX/refg|Cryo reduced",{"$f":"Table1[[#This Row],[E Code]]&\"V00\"","v":"E2718V00"},{"$f":"CODE128(Table1[[#This Row],[Barcode Value1]])","v":"Ì=<EÇ;2ÈV00&Î"},{"$f":"\"=<\"&Table1[[#This Row],[E Code]]&\"V00\"","v":"=<E2718V00"}]
["Thawed PLASMA","N/A","E2737","Thawed PLASMA|CP2D/XX/refg|Frozen <=24h",{"$f":"Table1[[#This Row],[E Code]]&\"V00\"","v":"E2737V00"},{"$f":"CODE128(Table1[[#This Row],[Barcode Value1]])","v":"Ì=<EÇ;EÈV001Î"},{"$f":"\"=<\"&Table1[[#This Row],[E Code]]&\"V00\"","v":"=<E2737V00"}]
["Thawed PLASMA","N/A","E2701","Thawed PLASMA|CPD/XX/refg|Frozen <=24h",{"$f":"Table1[[#This Row],[E Code]]&\"V00\"","v":"E2701V00"},{"$f":"CODE128(Table1[[#This Row],[Barcode Value1]])","v":"Ì=<EÇ;!ÈV00'Î"},{"$f":"\"=<\"&Table1[[#This Row],[E Code]]&\"V00\"","v":"=<E2701V00"}]
["Thawed PLASMA","N/A","E2719","Thawed PLASMA|CPDA-1/XX/refg|Frozen <=24h",{"$f":"Table1[[#This Row],[E Code]]&\"V00\"","v":"E2719V00"},{"$f":"CODE128(Table1[[#This Row],[Barcode Value1]])","v":"Ì=<EÇ;3ÈV00,Î"},{"$f":"\"=<\"&Table1[[#This Row],[E Code]]&\"V00\"","v":"=<E2719V00"}]
["Thawed POOLED CRYOPRECIPITATE","N/A","E7825","Thawed POOLED CRYOPRECIPITATE|None/XX/rt|10 units",{"$f":"Table1[[#This Row],[E Code]]&\"V00\"","v":"E7825V00"},{"$f":"CODE128(Table1[[#This Row],[Barcode Value1]])","v":"Ì=<EÇn9ÈV00ÅÎ"},{"$f":"\"=<\"&Table1[[#This Row],[E Code]]&\"V00\"","v":"=<E7825V00"}]
["Thawed POOLED CRYOPRECIPITATE","N/A","E8604","Thawed POOLED CRYOPRECIPITATE|None/XX/rt|2 units",{"$f":"Table1[[#This Row],[E Code]]&\"V00\"","v":"E8604V00"},{"$f":"CODE128(Table1[[#This Row],[Barcode Value1]])","v":"Ì=<EÇv$ÈV00+Î"},{"$f":"\"=<\"&Table1[[#This Row],[E Code]]&\"V00\"","v":"=<E8604V00"}]
["Thawed POOLED CRYOPRECIPITATE","N/A","E8605","Thawed POOLED CRYOPRECIPITATE|None/XX/rt|3 units",{"$f":"Table1[[#This Row],[E Code]]&\"V00\"","v":"E8605V00"},{"$f":"CODE128(Table1[[#This Row],[Barcode Value1]])","v":"Ì=<EÇv%ÈV001Î"},{"$f":"\"=<\"&Table1[[#This Row],[E Code]]&\"V00\"","v":"=<E8605V00"}]
["Thawed POOLED CRYOPRECIPITATE","N/A","E8144","Thawed POOLED CRYOPRECIPITATE|None/XX/rt|4 units",{"$f":"Table1[[#This Row],[E Code]]&\"V00\"","v":"E8144V00"},{"$f":"CODE128(Table1[[#This Row],[Barcode Value1]])","v":"Ì=<EÇqLÈV004Î"},{"$f":"\"=<\"&Table1[[#This Row],[E Code]]&\"V00\"","v":"=<E8144V00"}]
["Thawed POOLED CRYOPRECIPITATE","N/A","E6552","Thawed POOLED CRYOPRECIPITATE|None/XX/rt|5 units",{"$f":"Table1[[#This Row],[E Code]]&\"V00\"","v":"E6552V00"},{"$f":"CODE128(Table1[[#This Row],[Barcode Value1]])","v":"Ì=<EÇaTÈV00{Î"},{"$f":"\"=<\"&Table1[[#This Row],[E Code]]&\"V00\"","v":"=<E6552V00"}]
["Washed Apheresis RED BLOOD CELLS","N/A","E4144","Washed Apheresis RED BLOOD CELLS|None/XX/refg|Open|ResLeu:<5E6",{"$f":"Table1[[#This Row],[E Code]]&\"V00\"","v":"E4144V00"},{"$f":"CODE128(Table1[[#This Row],[Barcode Value1]])","v":"Ì=<EÇILÈV00:Î"},{"$f":"\"=<\"&Table1[[#This Row],[E Code]]&\"V00\"","v":"=<E4144V00"}]
["Washed Apheresis RED BLOOD CELLS","N/A","E4145","Washed Apheresis RED BLOOD CELLS|None/XX/refg|Open|Irradiated|ResLeu:<5E6",{"$f":"Table1[[#This Row],[E Code]]&\"V00\"","v":"E4145V00"},{"$f":"CODE128(Table1[[#This Row],[Barcode Value1]])","v":"Ì=<EÇIMÈV00@Î"},{"$f":"\"=<\"&Table1[[#This Row],[E Code]]&\"V00\"","v":"=<E4145V00"}]
["Washed Apheresis RED BLOOD CELLS","N/A","E4560","Washed Apheresis RED BLOOD CELLS|None/XX/refg|Open|Irradiated|ResLeu:<5E6|1st container",{"$f":"Table1[[#This Row],[E Code]]&\"V00\"","v":"E4560V00"},{"$f":"CODE128(Table1[[#This Row],[Barcode Value1]])","v":"Ì=<EÇM\\ÈV00GÎ"},{"$f":"\"=<\"&Table1[[#This Row],[E Code]]&\"V00\"","v":"=<E4560V00"}]
["Washed Apheresis RED BLOOD CELLS","N/A","E4561","Washed Apheresis RED BLOOD CELLS|None/XX/refg|Open|Irradiated|ResLeu:<5E6|2nd container",{"$f":"Table1[[#This Row],[E Code]]&\"V00\"","v":"E4561V00"},{"$f":"CODE128(Table1[[#This Row],[Barcode Value1]])","v":"Ì=<EÇM]ÈV00MÎ"},{"$f":"\"=<\"&Table1[[#This Row],[E Code]]&\"V00\"","v":"=<E4561V00"}]
["Washed Apheresis RED BLOOD CELLS","N/A","E4564","Washed Apheresis RED BLOOD CELLS|None/XX/refg|Open|ResLeu:<5E6|1st container",{"$f":"Table1[[#This Row],[E Code]]&\"V00\"","v":"E4564V00"},{"$f":"CODE128(Table1[[#This Row],[Barcode Value1]])","v":"Ì=<EÇM`ÈV00_Î"},{"$f":"\"=<\"&Table1[[#This Row],[E Code]]&\"V00\"","v":"=<E4564V00"}]
["Washed Apheresis RED BLOOD CELLS","N/A","E4565","Washed Apheresis RED BLOOD CELLS|None/XX/refg|Open|ResLeu:<5E6|2nd container",{"$f":"Table1[[#This Row],[E Code]]&\"V00\"","v":"E4565V00"},{"$f":"CODE128(Table1[[#This Row],[Barcode Value1]])","v":"Ì=<EÇMaÈV00eÎ"},{"$f":"\"=<\"&Table1[[#This Row],[E Code]]&\"V00\"","v":"=<E4565V00"}]
["Washed Apheresis RED BLOOD CELLS","N/A","E6184","Washed Apheresis RED BLOOD CELLS|None/XX/refg|ResLeu:<5E6",{"$f":"Table1[[#This Row],[E Code]]&\"V00\"","v":"E6184V00"},{"$f":"CODE128(Table1[[#This Row],[Barcode Value1]])","v":"Ì=<EÇ]tÈV00YÎ"},{"$f":"\"=<\"&Table1[[#This Row],[E Code]]&\"V00\"","v":"=<E6184V00"}]
["Washed Apheresis RED BLOOD CELLS","N/A","E6185","Washed Apheresis RED BLOOD CELLS|None/XX/refg|ResLeu:<5E6|1st container",{"$f":"Table1[[#This Row],[E Code]]&\"V00\"","v":"E6185V00"},{"$f":"CODE128(Table1[[#This Row],[Barcode Value1]])","v":"Ì=<EÇ]uÈV00_Î"},{"$f":"\"=<\"&Table1[[#This Row],[E Code]]&\"V00\"","v":"=<E6185V00"}]
["Washed Apheresis RED BLOOD CELLS","N/A","E6186","Washed Apheresis RED BLOOD CELLS|None/XX/refg|ResLeu:<5E6|2nd container",{"$f":"Table1[[#This Row],[E Code]]&\"V00\"","v":"E6186V00"},{"$f":"CODE128(Table1[[#This Row],[Barcode Value1]])","v":"Ì=<EÇ]vÈV00eÎ"},{"$f":"\"=<\"&Table1[[#This Row],[E Code]]&\"V00\"","v":"=<E6186V00"}]
["Washed Apheresis RED BLOOD CELLS","N/A","E6187","Washed Apheresis RED BLOOD CELLS|None/XX/refg|Irradiated|ResLeu:<5E6",{"$f":"Table1[[#This Row],[E Code]]&\"V00\"","v":"E6187V00"},{"$f":"CODE128(Table1[[#This Row],[Barcode Value1]])","v":"Ì=<EÇ]wÈV00kÎ"},{"$f":"\"=<\"&Table1[[#This Row],[E Code]]&\"V00\"","v":"=<E6187V00"}]
["Washed Apheresis RED BLOOD CELLS","N/A","E6188","Washed Apheresis RED BLOOD CELLS|None/XX/refg|Irradiated|ResLeu:<5E6|1st container",{"$f":"Table1[[#This Row],[E Code]]&\"V00\"","v":"E6188V00"},{"$f":"CODE128(Table1[[#This Row],[Barcode Value1]])","v":"Ì=<EÇ]xÈV00qÎ"},{"$f":"\"=<\"&Table1[[#This Row],[E Code]]&\"V00\"","v":"=<E6188V00"}]
["Washed Apheresis RED BLOOD CELLS","N/A","E6189","Washed Apheresis RED BLOOD CELLS|None/XX/refg|Irradiated|ResLeu:<5E6|2nd container",{"$f":"Table1[[#This Row],[E Code]]&\"V00\"","v":"E6189V00"},{"$f":"CODE128(Table1[[#This Row],[Barcode Value1]])","v":"Ì=<EÇ]yÈV00wÎ"},{"$f":"\"=<\"&Table1[[#This Row],[E Code]]&\"V00\"","v":"=<E6189V00"}]
["Washed RED BLOOD CELLS","N/A","E5169","Washed RED BLOOD CELLS|None/XX/refg|Open|ResLeu:<5E6",{"$f":"Table1[[#This Row],[E Code]]&\"V00\"","v":"E5169V00"},{"$f":"CODE128(Table1[[#This Row],[Barcode Value1]])","v":"Ì=<EÇSeÈV004Î"},{"$f":"\"=<\"&Table1[[#This Row],[E Code]]&\"V00\"","v":"=<E5169V00"}]
["Washed RED BLOOD CELLS","N/A","E5170","Washed RED BLOOD CELLS|None/XX/refg|Open|Irradiated|ResLeu:<5E6",{"$f":"Table1[[#This Row],[E Code]]&\"V00\"","v":"E5170V00"},{"$f":"CODE128(Table1[[#This Row],[Barcode Value1]])","v":"Ì=<EÇSfÈV00:Î"},{"$f":"\"=<\"&Table1[[#This Row],[E Code]]&\"V00\"","v":"=<E5170V00"}]
["Washed RED BLOOD CELLS","N/A","E5638","Washed RED BLOOD CELLS|None/XX/refg|ResLeu:<5E6",{"$f":"Table1[[#This Row],[E Code]]&\"V00\"","v":"E5638V00"},{"$f":"CODE128(Table1[[#This Row],[Barcode Value1]])","v":"Ì=<EÇXFÈV00aÎ"},{"$f":"\"=<\"&Table1[[#This Row],[E Code]]&\"V00\"","v":"=<E5638V00"}]
["Washed RED BLOOD CELLS","N/A","E5639","Washed RED BLOOD CELLS|None/XX/refg|Irradiated|ResLeu:<5E6",{"$f":"Table1[[#This Row],[E Code]]&\"V00\"","v":"E5639V00"},{"$f":"CODE128(Table1[[#This Row],[Barcode Value1]])","v":"Ì=<EÇXGÈV00gÎ"},{"$f":"\"=<\"&Table1[[#This Row],[E Code]]&\"V00\"","v":"=<E5639V00"}]
["WHOLE BLOOD","Leukoreduced","E0033","WHOLE BLOOD|CPD/500mL/refg|ResLeu:<5E6",{"$f":"Table1[[#This Row],[E Code]]&\"V00\"","v":"E0033V00"},{"$f":"CODE128(Table1[[#This Row],[Barcode Value1]])","v":"Ì=<EÇÂAÈV00`Î"},{"$f":"\"=<\"&Table1[[#This Row],[E Code]]&\"V00\"","v":"=<E0033V00"}]
["WHOLE BLOOD","N/A","E0023","WHOLE BLOOD|CPD/500mL/refg",{"$f":"Table1[[#This Row],[E Code]]&\"V00\"","v":"E0023V00"},{"$f":"CODE128(Table1[[#This Row],[Barcode Value1]])","v":"Ì=<EÇÂ7ÈV00$Î"},{"$f":"\"=<\"&Table1[[#This Row],[E Code]]&\"V00\"","v":"=<E0023V00"}]
[]
["1V00 is used for allogeneic components; for autologous and directed components, 100 and D00 are used respectively. Divided components will appear as VA0, VB0, VC0, etc."]

{"sheet":"Extended Expiration PLT PH","index":1,"n_rows":29,"n_cols":8,"rows_kept":29,"cut":false,"hidden":true,"merged":[[0,2,0,7],[2,0,2,7]]}
[null,null,"Extended Expiration Apheresis Platelet Product Codes "]
[]
["The list below includes product codes for Apheresis Platelet components with extended expiration dates following testing with the Verax Biomedical Platelet PGD® Test (for the detection of aerobic and anaerobic Gram-positive and Gram-negative bacteria), which extends expiration for another 24 hours post-testing. LifeSouth currently offers these products for hospitals that will accept these product types."]
[]
["Product Type","Modifiers","Day of Verax Test","E Code","Product Description","Product Code","Barcode","Barcode Value"]
["Apheresis PLATELETS","Leukoreduced","Day 5","E9228","Apheresis PLATELETS|ACD-A/XX/20-24C|ResLeu:<5E6|Bacterial test D5",{"$f":"Table13[[#This Row],[E Code]]&\"V00\"","v":"E9228V00"},{"$f":"CODE128(Table13[[#This Row],[Barcode Value]])","v":"Ì=<EÇ|<ÈV00rÎ"},{"$f":"\"=<\"&Table13[[#This Row],[E Code]]&\"V00\"","v":"=<E9228V00"}]
["Apheresis PLATELETS","Leukoreduced","Day 5","E9229","Apheresis PLATELETS|ACD-A/XX/20-24C|ResLeu:<5E6|1st container|Bacterial test D5",{"$f":"Table13[[#This Row],[E Code]]&\"V00\"","v":"E9229V00"},{"$f":"CODE128(Table13[[#This Row],[Barcode Value]])","v":"Ì=<EÇ|=ÈV00xÎ"},{"$f":"\"=<\"&Table13[[#This Row],[E Code]]&\"V00\"","v":"=<E9229V00"}]
["Apheresis PLATELETS","Leukoreduced","Day 5","E9230","Apheresis PLATELETS|ACD-A/XX/20-24C|ResLeu:<5E6|2nd container|Bacterial test D5",{"$f":"Table13[[#This Row],[E Code]]&\"V00\"","v":"E9230V00"},{"$f":"CODE128(Table13[[#This Row],[Barcode Value]])","v":"Ì=<EÇ|>ÈV00~Î"},{"$f":"\"=<\"&Table13[[#This Row],[E Code]]&\"V00\"","v":"=<E9230V00"}]
["Apheresis PLATELETS","Leukoreduced","Day 5","E9231","Apheresis PLATELETS|ACD-A/XX/20-24C|ResLeu:<5E6|3rd container|Bacterial test D5",{"$f":"Table13[[#This Row],[E Code]]&\"V00\"","v":"E9231V00"},{"$f":"CODE128(Table13[[#This Row],[Barcode Value]])","v":"Ì=<EÇ|?ÈV00ÈÎ"},{"$f":"\"=<\"&Table13[[#This Row],[E Code]]&\"V00\"","v":"=<E9231V00"}]
["Apheresis PLATELETS","Leukoreduced, Irradiated","Day 5","E9252","Apheresis PLATELETS|ACD-A/XX/20-24C|Irradiated|ResLeu:<5E6|Bacterial test D5",{"$f":"Table13[[#This Row],[E Code]]&\"V00\"","v":"E9252V00"},{"$f":"CODE128(Table13[[#This Row],[Barcode Value]])","v":"Ì=<EÇ|TÈV004Î"},{"$f":"\"=<\"&Table13[[#This Row],[E Code]]&\"V00\"","v":"=<E9252V00"}]
["Apheresis PLATELETS","Leukoreduced, Irradiated","Day 5","E9253","Apheresis PLATELETS|ACD-A/XX/20-24C|Irradiated|ResLeu:<5E6|1st container|Bacterial test D5",{"$f":"Table13[[#This Row],[E Code]]&\"V00\"","v":"E9253V00"},{"$f":"CODE128(Table13[[#This Row],[Barcode Value]])","v":"Ì=<EÇ|UÈV00:Î"},{"$f":"\"=<\"&Table13[[#This Row],[E Code]]&\"V00\"","v":"=<E9253V00"}]
["Apheresis PLATELETS","Leukoreduced, Irradiated","Day 5","E9254","Apheresis PLATELETS|ACD-A/XX/20-24C|Irradiated|ResLeu:<5E6|2nd container|Bacterial test D5",{"$f":"Table13[[#This Row],[E Code]]&\"V00\"","v":"E9254V00"},{"$f":"CODE128(Table13[[#This Row],[Barcode Value]])","v":"Ì=<EÇ|VÈV00@Î"},{"$f":"\"=<\"&Table13[[#This Row],[E Code]]&\"V00\"","v":"=<E9254V00"}]
["Apheresis PLATELETS","Leukoreduced, Irradiated","Day 5","E9255","Apheresis PLATELETS|ACD-A/XX/20-24C|Irradiated|ResLeu:<5E6|3rd container|Bacterial test D5",{"$f":"Table13[[#This Row],[E Code]]&\"V00\"","v":"E9255V00"},{"$f":"CODE128(Table13[[#This Row],[Barcode Value]])","v":"Ì=<EÇ|WÈV00FÎ"},{"$f":"\"=<\"&Table13[[#This Row],[E Code]]&\"V00\"","v":"=<E9255V00"}]
["Apheresis PLATELETS","Leukoreduced","Day 6","E9232","Apheresis PLATELETS|ACD-A/XX/20-24C|ResLeu:<5E6|Bacterial test D6",{"$f":"Table13[[#This Row],[E Code]]&\"V00\"","v":"E9232V00"},{"$f":"CODE128(Table13[[#This Row],[Barcode Value]])","v":"Ì=<EÇ|@ÈV00#Î"},{"$f":"\"=<\"&Table13[[#This Row],[E Code]]&\"V00\"","v":"=<E9232V00"}]
["Apheresis PLATELETS","Leukoreduced","Day 6","E9233","Apheresis PLATELETS|ACD-A/XX/20-24C|ResLeu:<5E6|1st container|Bacterial test D6",{"$f":"Table13[[#This Row],[E Code]]&\"V00\"","v":"E9233V00"},{"$f":"CODE128(Table13[[#This Row],[Barcode Value]])","v":"Ì=<EÇ|AÈV00)Î"},{"$f":"\"=<\"&Table13[[#This Row],[E Code]]&\"V00\"","v":"=<E9233V00"}]
["Apheresis PLATELETS","Leukoreduced","Day 6","E9234","Apheresis PLATELETS|ACD-A/XX/20-24C|ResLeu:<5E6|2nd container|Bacterial test D6",{"$f":"Table13[[#This Row],[E Code]]&\"V00\"","v":"E9234V00"},{"$f":"CODE128(Table13[[#This Row],[Barcode Value]])","v":"Ì=<EÇ|BÈV00/Î"},{"$f":"\"=<\"&Table13[[#This Row],[E Code]]&\"V00\"","v":"=<E9234V00"}]
["Apheresis PLATELETS","Leukoreduced","Day 6","E9235","Apheresis PLATELETS|ACD-A/XX/20-24C|ResLeu:<5E6|3rd container|Bacterial test D6",{"$f":"Table13[[#This Row],[E Code]]&\"V00\"","v":"E9235V00"},{"$f":"CODE128(Table13[[#This Row],[Barcode Value]])","v":"Ì=<EÇ|CÈV005Î"},{"$f":"\"=<\"&Table13[[#This Row],[E Code]]&\"V00\"","v":"=<E9235V00"}]
["Apheresis PLATELETS","Leukoreduced, Irradiated","Day 6","E9256","Apheresis PLATELETS|ACD-A/XX/20-24C|Irradiated|ResLeu:<5E6|Bacterial test D6",{"$f":"Table13[[#This Row],[E Code]]&\"V00\"","v":"E9256V00"},{"$f":"CODE128(Table13[[#This Row],[Barcode Value]])","v":"Ì=<EÇ|XÈV00LÎ"},{"$f":"\"=<\"&Table13[[#This Row],[E Code]]&\"V00\"","v":"=<E9256V00"}]
["Apheresis PLATELETS","Leukoreduced, Irradiated","Day 6","E9257","Apheresis PLATELETS|ACD-A/XX/20-24C|Irradiated|ResLeu:<5E6|1st container|Bacterial test D6",{"$f":"Table13[[#This Row],[E Code]]&\"V00\"","v":"E9257V00"},{"$f":"CODE128(Table13[[#This Row],[Barcode Value]])","v":"Ì=<EÇ|YÈV00RÎ"},{"$f":"\"=<\"&Table13[[#This Row],[E Code]]&\"V00\"","v":"=<E9257V00"}]
["Apheresis PLATELETS","Leukoreduced, Irradiated","Day 6","E9258","Apheresis PLATELETS|ACD-A/XX/20-24C|Irradiated|ResLeu:<5E6|2nd container|Bacterial test D6",{"$f":"Table13[[#This Row],[E Code]]&\"V00\"","v":"E9258V00"},{"$f":"CODE128(Table13[[#This Row],[Barcode Value]])","v":"Ì=<EÇ|ZÈV00XÎ"},{"$f":"\"=<\"&Table13[[#This Row],[E Code]]&\"V00\"","v":"=<E9258V00"}]
["Apheresis PLATELETS","Leukoreduced, Irradiated","Day 6","E9259","Apheresis PLATELETS|ACD-A/XX/20-24C|Irradiated|ResLeu:<5E6|3rd container|Bacterial test D6",{"$f":"Table13[[#This Row],[E Code]]&\"V00\"","v":"E9259V00"},{"$f":"CODE128(Table13[[#This Row],[Barcode Value]])","v":"Ì=<EÇ|[ÈV00^Î"},{"$f":"\"=<\"&Table13[[#This Row],[E Code]]&\"V00\"","v":"=<E9259V00"}]
["Apheresis PLATELETS","Leukoreduced","Day 7","E9236","Apheresis PLATELETS|ACD-A/XX/20-24C|ResLeu:<5E6|Bacterial test D7",{"$f":"Table13[[#This Row],[E Code]]&\"V00\"","v":"E9236V00"},{"$f":"CODE128(Table13[[#This Row],[Barcode Value]])","v":"Ì=<EÇ|DÈV00;Î"},{"$f":"\"=<\"&Table13[[#This Row],[E Code]]&\"V00\"","v":"=<E9236V00"}]
["Apheresis PLATELETS","Leukoreduced","Day 7","E9237","Apheresis PLATELETS|ACD-A/XX/20-24C|ResLeu:<5E6|1st container|Bacterial test D7",{"$f":"Table13[[#This Row],[E Code]]&\"V00\"","v":"E9237V00"},{"$f":"CODE128(Table13[[#This Row],[Barcode Value]])","v":"Ì=<EÇ|EÈV00AÎ"},{"$f":"\"=<\"&Table13[[#This Row],[E Code]]&\"V00\"","v":"=<E9237V00"}]
["Apheresis PLATELETS","Leukoreduced","Day 7","E9238","Apheresis PLATELETS|ACD-A/XX/20-24C|ResLeu:<5E6|2nd container|Bacterial test D7",{"$f":"Table13[[#This Row],[E Code]]&\"V00\"","v":"E9238V00"},{"$f":"CODE128(Table13[[#This Row],[Barcode Value]])","v":"Ì=<EÇ|FÈV00GÎ"},{"$f":"\"=<\"&Table13[[#This Row],[E Code]]&\"V00\"","v":"=<E9238V00"}]
["Apheresis PLATELETS","Leukoreduced","Day 7","E9239","Apheresis PLATELETS|ACD-A/XX/20-24C|ResLeu:<5E6|3rd container|Bacterial test D7",{"$f":"Table13[[#This Row],[E Code]]&\"V00\"","v":"E9239V00"},{"$f":"CODE128(Table13[[#This Row],[Barcode Value]])","v":"Ì=<EÇ|GÈV00MÎ"},{"$f":"\"=<\"&Table13[[#This Row],[E Code]]&\"V00\"","v":"=<E9239V00"}]
["Apheresis PLATELETS","Leukoreduced, Irradiated","Day 7","E9260","Apheresis PLATELETS|ACD-A/XX/20-24C|Irradiated|ResLeu:<5E6|Bacterial test D7",{"$f":"Table13[[#This Row],[E Code]]&\"V00\"","v":"E9260V00"},{"$f":"CODE128(Table13[[#This Row],[Barcode Value]])","v":"Ì=<EÇ|\\ÈV00dÎ"},{"$f":"\"=<\"&Table13[[#This Row],[E Code]]&\"V00\"","v":"=<E9260V00"}]
["Apheresis PLATELETS","Leukoreduced, Irradiated","Day 7","E9261","Apheresis PLATELETS|ACD-A/XX/20-24C|Irradiated|ResLeu:<5E6|1st container|Bacterial test D7",{"$f":"Table13[[#This Row],[E Code]]&\"V00\"","v":"E9261V00"},{"$f":"CODE128(Table13[[#This Row],[Barcode Value]])","v":"Ì=<EÇ|]ÈV00jÎ"},{"$f":"\"=<\"&Table13[[#This Row],[E Code]]&\"V00\"","v":"=<E9261V00"}]
["Apheresis PLATELETS","Leukoreduced, Irradiated","Day 7","E9262","Apheresis PLATELETS|ACD-A/XX/20-24C|Irradiated|ResLeu:<5E6|2nd container|Bacterial test D7",{"$f":"Table13[[#This Row],[E Code]]&\"V00\"","v":"E9262V00"},{"$f":"CODE128(Table13[[#This Row],[Barcode Value]])","v":"Ì=<EÇ|^ÈV00pÎ"},{"$f":"\"=<\"&Table13[[#This Row],[E Code]]&\"V00\"","v":"=<E9262V00"}]
["Apheresis PLATELETS","Leukoreduced, Irradiated","Day 7","E9263","Apheresis PLATELETS|ACD-A/XX/20-24C|Irradiated|ResLeu:<5E6|3rd container|Bacterial test D7",{"$f":"Table13[[#This Row],[E Code]]&\"V00\"","v":"E9263V00"},{"$f":"CODE128(Table13[[#This Row],[Barcode Value]])","v":"Ì=<EÇ|_ÈV00vÎ"},{"$f":"\"=<\"&Table13[[#This Row],[E Code]]&\"V00\"","v":"=<E9263V00"}]